{"text_format":"1","workbook":"xlsx","n_sheets":19,"sheets":["I.i II Ogólne i  Ident.","I.A WUM","II.A Wspólnik ","III działalność","IV.Opis operacji","IV A. Kryteria prosięta","IV B. Kryteria mleko","IV C. Kryteria opasy","IV D. Kryteria rent i konkurenc","V.zestawienie RF","VI.Finans.","VII.Inf.zał.","VII.Inf.zał. NN","VIII. Ośw. Podmiotu","Zał 1. Oświadczenia współ 3","Zał. 2 Opis Zadań","zał. 3 Następca_nabywca","Zał 4 Ośw. następcy prawneg","Zał 5 Zgoda osoby WUM"],"not_rendered":{"charts":0,"images":0,"macros":1,"external_links":3,"defined_names":71,"comments":0,"pivot_tables":0},"unopened":[],"bounds":{"document_bytes":16777216,"sheet_cells":100000,"rows_first":2000,"rows_last":500,"rows_between":2000,"halvings":0,"cell_chars":16384,"cell_head_chars":4096},"cells_cut":0,"cells_raw":0,"read":"whole","date_system":"1900"}

{"sheet":"I.i II Ogólne i  Ident.","index":0,"n_rows":73,"n_cols":47,"rows_kept":73,"cut":false,"hidden":false,"merged":[[72,28,72,36],[69,18,69,26],[69,27,69,36],[66,3,66,36],[63,27,63,36],[62,10,62,18],[63,10,63,18],[62,19,62,26],[63,2,63,5],[62,6,62,9],[67,18,67,26],[68,18,68,26],[62,2,62,5],[63,19,63,26],[72,2,72,19],[59,2,59,8],[59,26,59,36],[48,8,48,12],[50,19,50,36],[67,27,67,36],[61,17,61,26],[36,2,36,12],[36,23,36,31],[58,26,58,36],[60,27,60,36],[53,16,54,16],[53,17,54,17],[53,26,54,31],[54,34,54,36],[58,2,58,8],[53,2,54,14],[72,20,72,27],[58,17,58,25],[59,17,59,25],[59,9,59,16],[60,7,60,16],[63,6,63,9],[71,2,71,37],[22,2,22,28],[23,2,23,28],[34,20,34,36],[18,2,20,28],[19,29,19,36],[13,32,13,34],[13,28,13,30],[14,2,15,14],[14,15,15,36],[24,2,24,34],[29,3,29,10],[33,20,33,28],[27,2,27,36],[32,2,32,19],[32,20,32,28],[32,29,32,36],[73,2,73,19],[73,20,73,27],[73,28,73,36],[33,2,35,19],[33,29,33,36],[29,11,29,36],[45,17,45,25],[45,26,45,36],[47,17,47,26],[45,2,45,8],[44,17,44,25],[38,2,38,5],[47,2,47,6],[70,18,70,26],[50,2,50,18],[49,24,49,36],[62,27,62,36],[44,2,44,8],[44,9,44,16],[48,13,48,23],[51,2,51,18],[49,13,49,23],[49,2,49,7],[58,9,58,16],[1,31,1,36],[11,13,12,34],[11,2,12,12],[0,1,1,25],[1,26,1,30],[7,1,7,37],[8,1,9,37],[3,26,4,37],[2,1,5,25],[6,1,6,25],[10,2,10,35],[5,26,6,37],[31,3,31,36],[47,7,47,16],[49,8,49,12],[46,2,46,6],[46,7,46,16],[46,17,46,26],[44,26,44,36],[46,27,46,36],[39,21,39,25],[48,24,48,36],[39,27,39,36],[48,2,48,7],[68,27,68,36],[43,2,43,36],[45,9,45,16],[47,27,47,36],[70,27,70,36],[67,3,67,17],[68,3,68,17],[69,3,69,17],[70,3,70,17],[51,19,51,36],[60,2,60,6],[60,17,60,26],[61,27,61,36],[61,2,61,6],[61,7,61,16],[57,2,57,36],[53,18,54,18],[53,19,54,19],[53,20,54,20],[53,21,54,21],[53,22,54,22],[53,23,54,23],[53,24,54,24]]}
[null,"Agencja Restrukturyzacji i Modernizacji Rolnictwa"]
[null,null,null,null,null,null,null,null,null,null,null,null,null,null,null,null,null,null,null,null,null,null,null,null,null,null,"Symbol formularza",null,null,null,null,"W-1/4.1.3"]
[null,"WNIOSEK                                                                                                                                 o przyznanie pomocy na operacje typu „Modernizacja gospodarstw rolnych” w ramach poddziałania „Wsparcie inwestycji w gospodarstwach rolnych” objętego Programem Rozwoju Obszarów Wiejskich na lata 2014–2020 w obszarze:"]
[null,null,null,null,null,null,null,null,null,null,null,null,null,null,null,null,null,null,null,null,null,null,null,null,null,null,"Potwierdzenie przyjęcia przez Oddział Regionalny ARiMR\n/Biuro Powiatowe ARiMR/\n/pieczęć/"]
[]
[null,null,null,null,null,null,null,null,null,null,null,null,null,null,null,null,null,null,null,null,null,null,null,null,null,null,"...............................................\nData przyjęcia i podpis"]
[null,"(wybierz z listy obszar wsparcia)",null,null,null,null,null,null,null,null,null,null,null,null,null,null,null,null,null,null,null,null,null,null,null,null,null,null,null,null,null,null,null,null,null,null,null,null,null,null,null,null,null,null,"(wybierz z listy obszar wsparcia)"]
[null,".................................................................................................................................................................\nZnak sprawy",null,null,null,null,null,null,null,null,null,null,null,null,null,null,null,null,null,null,null,null,null,null,null,null,null,null,null,null,null,null,null,null,null,null,null,null,null,null,null,null,null,null,"rozwój produkcji prosiąt"]
[null,"W celu poprawnego wypełnienia wniosku podmiot ubiegający się o przyznanie pomocy powinien zapoznać się z instrukcją jego wypełniania",null,null,null,null,null,null,null,null,null,null,null,null,null,null,null,null,null,null,null,null,null,null,null,null,null,null,null,null,null,null,null,null,null,null,null,null,null,null,null,null,null,null,"rozwój produkcji mleka krowiego"]
[null,null,null,null,null,null,null,null,null,null,null,null,null,null,null,null,null,null,null,null,null,null,null,null,null,null,null,null,null,null,null,null,null,null,null,null,null,null,null,null,null,null,null,null,"rozwój produkcji bydła mięsnego"]
[null,null,null,null,null,null,null,null,null,null,null,null,null,null,null,null,null,null,null,null,null,null,null,null,null,null,null,null,null,null,null,null,null,null,null,null,null,null,null,null,null,null,null,null,"związanym z racjonalizacją technologii produkcji, wprowadzeniem innowacji, zmianą profilu produkcji, zwiększeniem skali produkcji, poprawą jakości produkcji lub zwiększeniem wartości dodanej produktu"]
[null,null,"I. CZĘŚĆ OGÓLNA"]
[]
[]
[null,null,"1.1. CEL ZŁOŻENIA:",null,null,null,null,null,null,null,null,null,null,null,null,"(wybierz z listy)",null,null,null,null,null,null,null,null,null,null,null,null,null,null,null,null,null,null,null,null,null,null,null,null,null,null,null,null,null,null,"(wybierz z listy)"]
[null,null,null,null,null,null,null,null,null,null,null,null,null,null,null,null,null,null,null,null,null,null,null,null,null,null,null,null,null,null,null,null,null,null,null,null,null,null,null,null,null,null,null,null,null,null,"złożenie wniosku"]
[null,null,null,null,null,null,null,null,null,null,null,null,null,null,null,null,null,null,null,null,null,null,null,null,null,null,null,null,null,null,null,null,null,null,null,null,null,null,null,null,null,null,null,null,null,null,"zmiana wniosku"]
[null,null,null,null,null,null,null,null,null,null,null,null,null,null,null,null,null,null,null,null,null,null,null,null,null,null,null,null,null,null,null,null,null,null,null,null,null,null,null,null,null,null,null,null,null,null,"korekta wniosku"]
[null,null," 1.2. WNIOSEK SKŁADANY JEST PRZEZ OSOBY WSPÓLNIE WNIOSKUJĄCE",null,null,null,null,null,null,null,null,null,null,null,null,null,null,null,null,null,null,null,null,null,null,null,null,null,null,null,null,null,null,null,null,null,null,null,null,null,null,null,null,null,"(wybierz z listy)",null,"wycofanie wniosku"]
[null,null,null,null,null,null,null,null,null,null,null,null,null,null,null,null,null,null,null,null,null,null,null,null,null,null,null,null,null,"(wybierz z listy)",null,null,null,null,null,null,null,null,null,null,null,null,null,null,"TAK",null,"złożenie wniosku następcy prawnego Beneficjenta"]
[null,null,null,null,null,null,null,null,null,null,null,null,null,null,null,null,null,null,null,null,null,null,null,null,null,null,null,null,null,null,null,null,null,null,null,null,null,null,null,null,null,null,null,null,"NIE",null,"złożenie wniosku nabywcy o przyznanie pomocy"]
[]
[]
[null,null,"II. DANE PODMIOTU UBIEGAJĄCEGO SIĘ O PRZYZNANIE POMOCY "]
[null,null,"1. Numer identyfikacyjny ",null,null,null,null,null,null,null,null,null,null,null,null,null,null,null,null,null,null,null,null,null,null,null,null,null,null,null,null,null,null,null,null,null,null,null,null,null,null,null,null,null,"(wybierz z listy)"]
[null,null,"1.1.1",null,null,null,null,null,null,null,null,null,null,null,null,null,"1.2.",null,null,null,null,null,null,null,null,null,null,null,null,null,null,null,null,null,null,null,null,null,null,null,null,null,null,null,"OSOBA FIZYCZNA"]
[null,null,null,null,null,null,null,null,null,null,null,null,null,null,null,null,null,null,null,null,null,null,null,null,null,null,null,null,null,null,null,null,null,null,null,null,null,null,null,null,null,null,null,null,"OSOBA PRAWNA"]
[null,null,"1Uwaga: W pozycji 1.1 należy wpisać numer identyfikacyjny podmiotu ubiegającego się o przyznanie pomocy albo numer identyfikacyjny:\n1)  jego współmałżonka, jeżeli wyraził zgodę na nadanie mu tego numeru – w przypadku osoby fizycznej;\n2)  spółki cywilnej, której jest wspólnikiem – w przypadku wspólnika spółki cywilnej.\n\nW przypadku niewypełnienia pozycji 1.1 Numer identyfikacyjny, jeżeli nie dołączono wniosku o wpis do ewidencji producentów, o której mowa w przepisach o krajowym systemie ewidencji producentów, ewidencji gospodarstw rolnych oraz ewidencji wniosków o przyznanie płatności, albo jego kopii, Agencja pozostawia wniosek bez rozpatrzenia, bez uprzedniego wezwania do usunięcia braków, z zastrzeżeniem sytuacji gdy numer ten można ustalić w ewidencji producentów.\n",null,null,null,null,null,null,null,null,null,null,null,null,null,null,null,null,null,null,null,null,null,null,null,null,null,null,null,null,null,null,null,null,null,null,null,null,null,null,null,null,null,"SPÓŁKA OSOBOWA W ROZUMIENIU KODEKSU SPÓŁEK HANDLOWYCH"]
[null,null,null,null,null,null,null,null,null,null,null,null,null,null,null,null,null,null,null,null,null,null,null,null,null,null,null,null,null,null,null,null,null,null,null,null,null,null,null,null,null,null,null,null,"WSPÓLNICY SPÓŁKI CYWILNEJ"]
[null,null,"2.","Rodzaj podmiotu ubiegającego się o przyznanie pomocy",null,null,null,null,null,null,null,"(wybierz z listy)"]
[]
[null,null,"3.","Dane podmiotu ubiegającego się o przyznanie pomocy"]
[null,null,"3.1. Nazwisko/Nazwa: ",null,null,null,null,null,null,null,null,null,null,null,null,null,null,null,null,null,"3.2. Pierwsze imię",null,null,null,null,null,null,null,null,"3.3. Drugie Imię",null,null,null,null,null,null,null,null,null,null,null,null,null,null,null,null,"(wybierz z listy)"]
[null,null,null,null,null,null,null,null,null,null,null,null,null,null,null,null,null,null,null,null,null,null,null,null,null,null,null,null,null,null,null,null,null,null,null,null,null,null,null,null,null,null,null,null,null,null,"pozostaję w związku małżeńskim"]
[null,null,null,null,null,null,null,null,null,null,null,null,null,null,null,null,null,null,null,null,"3.4. PESEL/data urodzenia",null,null,null,null,null,null,null,null,null,null,null,null,null,null,null,null,null,null,null,null,null,null,null,null,null,"nie pozostaję w związku małżeńskim"]
[]
[null,null,"3.5. NIP",null,null,null,null,null,null,null,null,null,null,"3.6 REGON",null,null,null,null,null,null,null,null,null,"3.7. NR KRS",null,null,null,null,null,null,null,null,null,null,null,null,null,null,null,null,null,null,null,null,null,null,"(wybierz z listy)"]
[null,null,null,null,null,null,null,null,null,null,null,null,null,null,null,null,null,null,null,null,null,null," ",null,null,null,null,null,null,null,null,null,null,null,null,null,null,null,null,null,null,null,null,null,null,null,"KOBIETA "]
[null,null,"3.8. Kod kraju",null,null,null,"3.9. Numer paszportu lub innego dokumentu tożsamości ",null,null,null,null,null,null,null,null,null,null,null,null,null,null,"3.10. Płeć:",null,null,null,null,null,"3.11 Stan cywilny",null,null,null,null,null,null,null,null,null,null,null,null,null,null,null,null,null,null,"MĘŻCZYZNA "]
[null,null,null,null,null,null,null,null,null,null,null,null,null,null,null,null,null,null,null,null,null,"(wybierz z listy)",null,null,null,null,null,"(wybierz z listy)"]
[]
[]
[]
[null,null,"4. Adres podmiotu ubiegającego się o przyznanie pomocy (miejsce zamieszkania osoby fizycznej lub siedziba w przypadku pozostałych podmiotów)"]
[null,null,"4.1. Kraj",null,null,null,null,null,null,"4.2. Województwo",null,null,null,null,null,null,null,"4.3. Powiat",null,null,null,null,null,null,null,null,"4.4. Gmina"]
[]
[null,null,"4.5. Kod pocztowy",null,null,null,null,"4.6. Poczta",null,null,null,null,null,null,null,null,null,"4.7. Miejscowość",null,null,null,null,null,null,null,null,null,"4.8 Ulica"]
[]
[null,null,"4.9. Nr domu",null,null,null,null,null,"4.10. Nr lokalu",null,null,null,null,"4.11. Telefon stacjonarny/ komórkowy",null,null,null,null,null,null,null,null,null,null,"4.12. Faks"]
[]
[null,null,"4.13. E-mail",null,null,null,null,null,null,null,null,null,null,null,null,null,null,null,null,"4.14. Adres www"]
[]
[]
[null,null,"4.15. Nr telefonu komórkowego do powiadomień SMS",null,null,null,null,null,null,null,null,null,null,null,null,null,null,null,null,null,null,null,null,null,null,null,"4.16. Wyrażenie zgody na otrzymywanie powiadomień"]
[null,null,null,null,null,null,null,null,null,null,null,null,null,null,null,null,null,null,null,null,null,null,null,null,null,null,null,null,null,null,null,null,null,null,"TAK"]
[]
[]
[null,null,"5. Adres do korespondencji (wypełnić, jeśli jest inny niż w pkt 4 lub ustanowiono pełnomocnika)"]
[null,null,"5.1. Kraj",null,null,null,null,null,null,"5.2. Województwo",null,null,null,null,null,null,null,"5.3. Powiat",null,null,null,null,null,null,null,null,"5.4. Gmina"]
[]
[null,null,"5.5. Kod pocztowy",null,null,null,null,"5.6. Poczta",null,null,null,null,null,null,null,null,null,"5.7. Miejscowość",null,null,null,null,null,null,null,null,null,"5.8 Ulica"]
[]
[null,null,"5.9. Nr domu",null,null,null,"5.10. Nr lokalu",null,null,null,"5.11.Telefon stacjonarny/komórkowy",null,null,null,null,null,null,null,null,"5.12. Faks",null,null,null,null,null,null,null,"5.13. E-mail"]
[]
[]
[]
[null,null,"6.","Dane osób upoważnionych do reprezentowania podmiotu ubiegającego się o przyznanie pomocy (dotyczy podmiotów niebędących osobą fizyczną)"]
[null,null,"Lp.","Nazwisko/ Nazwa",null,null,null,null,null,null,null,null,null,null,null,null,null,null,"Pierwsze imię",null,null,null,null,null,null,null,null," PESEL"]
[null,null,"6.1."]
[null,null,"6.2."]
[null,null,"6.3."]
[null,null,"7. Dane pełnomocnika podmiotu ubiegającego się o przyznanie pomocy"]
[null,null,"7.1. Nazwisko/Nazwa: ",null,null,null,null,null,null,null,null,null,null,null,null,null,null,null,null,null,"7.2. Pierwsze imię",null,null,null,null,null,null,null,"7.3 PESEL"]

{"sheet":"I.A WUM","index":1,"n_rows":85,"n_cols":50,"rows_kept":85,"cut":false,"hidden":false,"merged":[[0,19,0,43],[0,1,0,18],[2,2,2,43],[73,2,74,35],[24,27,24,31],[24,32,24,37],[24,38,24,43],[24,21,24,26],[24,2,24,20],[15,40,17,41],[12,42,14,43],[15,42,17,43],[18,42,20,43],[7,3,8,12],[9,3,11,12],[12,3,14,12],[15,3,17,12],[18,3,20,12],[8,36,8,37],[9,42,11,43],[18,28,20,29],[18,30,20,31],[15,2,17,2],[18,16,20,21],[15,30,17,31],[15,36,17,37],[15,16,17,21],[18,2,20,2],[7,42,8,43],[8,40,8,41],[18,40,20,41],[7,16,8,21],[16,23,16,26],[19,23,19,26],[15,32,17,33],[18,32,20,33],[7,2,8,2],[7,13,7,15],[8,13,8,15],[9,30,11,31],[10,23,10,26],[9,16,11,21],[12,2,14,2],[3,28,3,30],[3,32,3,34],[4,29,4,33],[8,28,8,29],[8,30,8,31],[7,28,7,41],[13,23,13,26],[7,22,8,27],[9,2,11,2],[8,38,8,39],[12,40,14,41],[12,16,14,21],[12,28,14,29],[12,30,14,31],[9,28,11,29],[9,38,11,39],[12,36,14,37],[9,36,11,37],[9,40,11,41],[4,3,4,25],[6,3,6,36],[15,38,17,39],[18,38,20,39],[8,32,8,33],[9,32,11,33],[12,32,14,33],[8,34,8,35],[9,34,11,35],[12,34,14,35],[12,38,14,39],[18,36,20,37],[15,34,17,35],[15,28,17,29],[18,34,20,35],[83,2,83,35],[84,2,84,35],[83,36,83,43],[84,36,84,43],[72,36,75,43],[77,36,79,43],[80,36,80,43],[81,36,81,43],[82,36,82,43],[82,2,82,35],[23,27,23,31],[23,32,23,37],[23,38,23,43],[26,2,31,3],[26,25,26,26],[26,27,26,29],[26,30,26,31],[26,32,26,37],[26,38,26,43],[27,27,27,29],[27,30,27,31],[27,32,27,37],[27,38,27,43],[28,25,28,26],[28,27,28,29],[28,30,28,31],[28,32,28,37],[28,38,28,43],[27,25,27,26],[29,27,29,29],[29,30,29,31],[29,32,29,37],[29,38,29,43],[39,38,39,43],[36,38,36,43],[35,27,35,29],[35,30,35,31],[35,32,35,37],[35,38,35,43],[37,30,37,31],[30,25,30,26],[30,27,30,29],[30,30,30,31],[34,25,34,26],[34,27,34,29],[34,30,34,31],[30,38,30,43],[31,27,31,29],[31,30,31,31],[31,32,31,37],[31,38,31,43],[30,32,30,37],[33,38,33,43],[33,4,33,20],[37,25,37,26],[36,4,36,20],[33,25,33,26],[35,25,35,26],[37,4,37,20],[38,4,38,20],[33,32,33,37],[40,32,40,37],[39,30,39,31],[39,32,39,37],[36,27,36,29],[36,30,36,31],[36,32,36,37],[37,27,37,29],[39,27,39,29],[37,32,37,37],[36,25,36,26],[38,27,38,29],[38,30,38,31],[38,25,38,26],[33,27,33,29],[33,30,33,31],[38,32,38,37],[26,4,26,20],[27,4,27,20],[28,4,28,20],[29,4,29,20],[47,38,47,43],[43,32,43,37],[43,38,43,43],[44,32,44,37],[42,32,42,37],[46,25,46,26],[47,4,47,20],[46,4,46,20],[45,4,45,20],[44,4,44,20],[45,38,45,43],[44,38,44,43],[45,25,45,26],[45,32,45,37],[47,21,47,24],[46,21,46,24],[40,21,40,24],[33,21,33,24],[40,25,40,26],[40,27,40,29],[60,21,60,24],[59,21,59,24],[58,21,58,24],[57,4,57,20],[60,2,60,20],[59,2,59,20],[57,2,58,3],[57,25,57,26],[22,3,22,43],[25,2,25,43],[23,2,23,20],[23,21,23,26],[39,25,39,26],[55,27,55,31],[27,21,27,24],[55,32,55,37],[55,38,55,43],[31,21,31,24],[28,21,28,24],[35,4,35,20],[30,21,30,24],[37,21,37,24],[34,21,34,24],[32,2,32,43],[59,27,59,29],[59,30,59,31],[59,32,59,37],[59,38,59,43],[60,25,60,26],[60,27,60,29],[59,25,59,26],[60,30,60,31],[60,32,60,37],[60,38,60,43],[81,2,81,35],[80,2,80,35],[77,2,79,35],[68,2,69,35],[61,27,61,31],[62,2,62,15],[62,21,62,26],[62,27,62,31],[62,32,62,37],[61,21,61,24],[67,36,70,43],[63,32,63,37],[61,25,61,26],[61,32,61,37],[61,38,61,43],[63,38,63,43],[62,38,62,43],[64,32,64,37],[64,38,64,43],[64,2,64,31],[63,2,63,31],[61,2,61,20],[29,21,29,24],[40,38,40,43],[46,32,46,37],[46,38,46,43],[47,25,47,26],[47,32,47,37],[44,25,44,26],[44,21,44,24],[45,21,45,24],[42,21,42,24],[37,38,37,43],[34,32,34,37],[34,38,34,43],[29,25,29,26],[40,30,40,31],[42,27,51,31],[49,21,49,24],[48,25,48,26],[43,25,43,26],[43,21,43,24],[50,21,50,24],[51,25,51,26],[48,21,48,24],[38,38,38,43],[56,2,56,43],[55,2,55,20],[57,27,57,29],[50,25,50,26],[26,21,26,24],[43,4,43,20],[39,21,39,24],[38,21,38,24],[35,21,35,24],[36,21,36,24],[42,4,42,20],[41,2,41,43],[31,25,31,26],[34,4,34,20],[42,38,42,43],[30,4,30,20],[31,4,31,20],[42,2,51,3],[42,25,42,26],[51,32,51,37],[51,38,51,43],[33,2,38,3],[39,2,39,20],[40,2,40,20],[50,4,50,20],[49,4,49,20],[48,4,48,20],[50,32,50,37],[58,38,58,43],[57,21,57,24],[49,25,49,26],[51,21,51,24],[55,25,55,26],[51,4,51,20],[57,30,57,31],[57,32,57,37],[58,4,58,20],[58,30,58,31],[58,32,58,37],[55,21,55,24],[58,27,58,29],[58,25,58,26],[57,38,57,43],[48,38,48,43],[49,32,49,37],[50,38,50,43],[49,38,49,43],[48,32,48,37]]}
[null,"Podmiot (Imię i Nazwisko/Nazwa):",null,null,null,null,null,null,null,null,null,null,null,null,null,null,null,null,null,{"$f":"'I.i II Ogólne i  Ident.'!U34&'I.i II Ogólne i  Ident.'!W38&'I.i II Ogólne i  Ident.'!AD34&'I.i II Ogólne i  Ident.'!W38&'I.i II Ogólne i  Ident.'!C34","v":"  "}]
[]
[null,null,"I.A INFORMACJE PODAWANE W PRZYPADKU WNIOSKU O PRZYZNANIE POMOCY SKŁADANEGO PRZEZ OSOBY WSPÓLNIE WNIOSKUJĄCE - (wypełnia tylko osoba wiodąca) "]
[]
[null," ","1. ","Liczba osób wspólnie wnioskujących:"]
[]
[null,null,"2.","W skład grupy osób wspólnie wnioskujących wchodzą:"]
[null,null,"Lp","Dane osób wspólnie wnioskujących",null,null,null,null,null,null,null,null,null,"Osoba wiodąca",null,null,"Numer identyfikacyjny producenta",null,null,null,null,null,"Wielkość ekonomiczna gospodarstwa pow. 10000 EURO",null,null,null,null,null,"zakres prac w odniesieniu do każdego przedmiotu operacji (w %)",null,null,null,null,null,null,null,null,null,null,null,null,null,"średnia arytme-tyczna"]
[null,null,null,null,null,null,null,null,null,null,null,null,null,"TAK",null,null,null,null,null,null,null,null,null,null,null,null,null,null,1,null,2,null,3,null,4,null,5,null,6,null,7]
[null,null,1]
[null,null,null,null,null,null,null,null,null,null,null,null,null,null,null,null,null,null,null,null,null,null,null,"(wybierz z listy)"]
[null,null,null,null,null,null,null,null,null,null,null,null,null,null,null,null,null,null,null,null,null,null,null,null,null,null,null,null,null,null,null,null,null,null,null,null,null,null,null,null,null,null,null,null,null,null,null,null,null,"(wybierz z listy)"]
[null,null,2,null,null,null,null,null,null,null,null,null,null,null,null,null,null,null,null,null,null,null,null,null,null,null,null,null,null,null,null,null,null,null,null,null,null,null,null,null,null,null,null,null,null,null,null,null,null,"TAK"]
[null,null,null,null,null,null,null,null,null,null,null,null,null,null,null,null,null,null,null,null,null,null,null,"(wybierz z listy)",null,null,null,null,null,null,null,null,null,null,null,null,null,null,null,null,null,null,null,null,null,null,null,null,null,"NIE"]
[]
[null,null,3]
[null,null,null,null,null,null,null,null,null,null,null,null,null,null,null,null,null,null,null,null,null,null,null,"(wybierz z listy)"]
[]
[null,null,"(…)"]
[null,null,null,null,null,null,null,null,null,null,null,null,null,null,null,null,null,null,null,null,null,null,null,"(wybierz z listy)"]
[]
[]
[null,null,"3.","PLANOWANE KOSZTY REALIZACJI OPERACJI -  łącznie dla osób wspólnie wnioskujących"]
[null,null,"Rodzaje kosztów",null,null,null,null,null,null,null,null,null,null,null,null,null,null,null,null,null,null,"Ilość ",null,null,null,null,null,"Powie-rzchnia/\nObjętość",null,null,null,null,"Całkowity koszt operacji\n(w zł z VAT)",null,null,null,null,null,"Koszty kwalifikowalne operacji\n(w zł bez VAT)"]
[null,null,1,null,null,null,null,null,null,null,null,null,null,null,null,null,null,null,null,null,null,2,null,null,null,null,null,3,null,null,null,null,4,null,null,null,null,null,5]
[null,null,"Planowane do wybudowania budynki produkcyjne"]
[null,null,"w tym:",null,"obory",null,null,null,null,null,null,null,null,null,null,null,null,null,null,null,null,null,null,null,null,"szt",null,null,null,null,"m2"]
[null,null,null,null,"chlewnie",null,null,null,null,null,null,null,null,null,null,null,null,null,null,null,null,null,null,null,null,"szt",null,null,null,null,"m2"]
[null,null,null,null,"inne budynki przeznaczone na inwentarz żywy",null,null,null,null,null,null,null,null,null,null,null,null,null,null,null,null,null,null,null,null,"szt",null,null,null,null,"m2"]
[null,null,null,null,"szklarnie",null,null,null,null,null,null,null,null,null,null,null,null,null,null,null,null,null,null,null,null,"szt",null,null,null,null,"m2"]
[null,null,null,null,"magazyny paszowe",null,null,null,null,null,null,null,null,null,null,null,null,null,null,null,null,null,null,null,null,"szt",null,null,null,null,"m2"]
[null,null,null,null,"pozostałe budynki gospodarcze",null,null,null,null,null,null,null,null,null,null,null,null,null,null,null,null,null,null,null,null,"szt",null,null,null,null,"m2"]
[null,null,"Planowane do modernizacji budynki produkcyjne"]
[null,null,"w tym:",null,"obory",null,null,null,null,null,null,null,null,null,null,null,null,null,null,null,null,null,null,null,null,"szt",null,null,null,null,"m2"]
[null,null,null,null,"chlewnie",null,null,null,null,null,null,null,null,null,null,null,null,null,null,null,null,null,null,null,null,"szt",null,null,null,null,"m2"]
[null,null,null,null,"inne budynki przeznaczone na inwentarz żywy",null,null,null,null,null,null,null,null,null,null,null,null,null,null,null,null,null,null,null,null,"szt",null,null,null,null,"m2"]
[null,null,null,null,"szklarnie",null,null,null,null,null,null,null,null,null,null,null,null,null,null,null,null,null,null,null,null,"szt",null,null,null,null,"m2"]
[null,null,null,null,"magazyny paszowe",null,null,null,null,null,null,null,null,null,null,null,null,null,null,null,null,null,null,null,null,"szt",null,null,null,null,"m2"]
[null,null,null,null,"pozostałe budynki gospodarcze",null,null,null,null,null,null,null,null,null,null,null,null,null,null,null,null,null,null,null,null,"szt",null,null,null,null,"m2"]
[null,null,"Płyty obornikowe",null,null,null,null,null,null,null,null,null,null,null,null,null,null,null,null,null,null,null,null,null,null,"szt",null,null,null,null,"m2"]
[null,null,"Zbiorniki na gnojówkę i gnojowicę",null,null,null,null,null,null,null,null,null,null,null,null,null,null,null,null,null,null,null,null,null,null,"szt",null,null,null,null,"m3"]
[null,null,"Planowane do zakupienia sprzęty ruchome"]
[null,null,"w tym:",null,"ciągniki rolnicze",null,null,null,null,null,null,null,null,null,null,null,null,null,null,null,null,null,null,null,null,"szt"]
[null,null,null,null,"ładowarki samobieżne",null,null,null,null,null,null,null,null,null,null,null,null,null,null,null,null,null,null,null,null,"szt"]
[null,null,null,null,"kombajny zbożowe",null,null,null,null,null,null,null,null,null,null,null,null,null,null,null,null,null,null,null,null,"szt"]
[null,null,null,null,"maszyny do zbioru (z wyłączeniem kombajnów zbożowych) ",null,null,null,null,null,null,null,null,null,null,null,null,null,null,null,null,null,null,null,null,"szt"]
[null,null,null,null,"przyczepy transportowe",null,null,null,null,null,null,null,null,null,null,null,null,null,null,null,null,null,null,null,null,"szt"]
[null,null,null,null,"narzędzia i maszyny do uprawy gleby",null,null,null,null,null,null,null,null,null,null,null,null,null,null,null,null,null,null,null,null,"szt"]
[null,null,null,null,"maszyny do nawożenia",null,null,null,null,null,null,null,null,null,null,null,null,null,null,null,null,null,null,null,null,"szt"]
[null,null,null,null,"maszyny i urządzenia do siewu i sadzenia",null,null,null,null,null,null,null,null,null,null,null,null,null,null,null,null,null,null,null,null,"szt"]
[null,null,null,null,"pozostałe maszyny i urządzenia",null,null,null,null,null,null,null,null,null,null,null,null,null,null,null,null,null,null,null,null,"szt"]
[null,null,null,null,"elementy wyposażenia, elementy maszyn, narzędzi, wyposażenie dodatkowe",null,null,null,null,null,null,null,null,null,null,null,null,null,null,null,null,null,null,null,null,"szt"]
[]
[]
[]
[null,null,"Planowany do zakupu sprzęt komputerowy",null,null,null,null,null,null,null,null,null,null,null,null,null,null,null,null,null,null,null,null,null,null,"szt"]
[null,null,"Elementy infrastruktury technicznej"]
[null,null,"w tym:",null,"place manewrowe",null,null,null,null,null,null,null,null,null,null,null,null,null,null,null,null,null,null,null,null,"szt",null,null,null,null,"m2"]
[null,null,null,null,"drogi dojazdowe",null,null,null,null,null,null,null,null,null,null,null,null,null,null,null,null,null,null,null,null,"szt",null,null,null,null,"mb"]
[null,null,"Planowane do założenia sady lub plantacje krzewów owocowych, gatunków owocujących efektywnie dłużej niż 5 lat",null,null,null,null,null,null,null,null,null,null,null,null,null,null,null,null,null,null,null,null,null,null,"szt",null,null,null,null,"ha"]
[null,null,"Planowane do wybudowania lub zmodernizowania obiekty służące do przygotowania do sprzedaży produktów rolnych wytwarzanych w gospodarstwie",null,null,null,null,null,null,null,null,null,null,null,null,null,null,null,null,null,null,null,null,null,null,"szt",null,null,null,null,"m2"]
[null,null,"Pozostałe inwestycje",null,null,null,null,null,null,null,null,null,null,null,null,null,null,null,null,null,null,null,null,null,null,"szt"]
[null,null,"Koszty ogólne"]
[null,null,"Koszty niekwalifikowalne"]
[null,null,"Suma kosztów",null,null,null,null,null,null,null,null,null,null,null,null,null,null,null,null,null,null,null,null,null,null,null,null,null,null,null,null,null,{"$f":"SUM(AG27:AL32)+SUM(AG34:AL41)+SUM(AG43:AL52)+AG56+SUM(AG58:AL64)","v":0},null,null,null,null,null,{"$f":"SUM(AM27:AR32)+SUM(AM34:AR41)+SUM(AM43:AR52)+AM56+SUM(AM58:AR63)","v":0}]
[]
[]
[]
[null,null,"4. Limit pomocy dla osób wspólnie wnioskujących (w zł):"]
[]
[]
[]
[]
[null,null,"5.  Kwota do wykorzystania przez osoby wspólnie wnioskujące (w zł):"]
[]
[]
[]
[null,null,"6. WNIOSKOWANA KWOTA POMOCY ŁĄCZNIE przez osoby wspólnie wnioskujące\n(suma pkt 6.1. - 6.5.) w tym:",null,null,null,null,null,null,null,null,null,null,null,null,null,null,null,null,null,null,null,null,null,null,null,null,null,null,null,null,null,null,null,null,null,{"$f":"SUM(AK81:AR85)","v":0}]
[]
[]
[null,null,"6.1. Wnioskowana kwota pomocy łącznie dla I etapu operacji"]
[null,null,"6.2. Wnioskowana kwota pomocy łącznie dla II etapu operacji"]
[null,null,"6.3. Wnioskowana kwota pomocy łącznie dla III etapu operacji"]
[null,null,"6.4. Wnioskowana kwota pomocy łącznie dla IV etapu operacji"]
[null,null,"6.5. Wnioskowana kwota pomocy łącznie dla V etapu operacji"]

{"sheet":"II.A Wspólnik ","index":2,"n_rows":64,"n_cols":42,"rows_kept":64,"cut":false,"hidden":false,"merged":[[51,3,51,15],[51,16,51,26],[47,28,47,35],[52,16,52,26],[55,28,55,35],[55,2,55,19],[52,27,52,35],[52,3,52,15],[63,17,63,35],[50,2,50,35],[62,17,62,35],[60,1,60,35],[56,2,56,19],[56,20,56,27],[54,2,54,36],[39,2,39,7],[35,17,35,25],[35,2,35,8],[40,2,40,18],[40,19,40,35],[44,9,44,16],[44,17,44,25],[51,27,51,35],[48,6,48,9],[48,20,48,27],[47,6,47,9],[48,10,48,19],[46,27,46,35],[42,2,42,35],[36,2,36,6],[36,7,36,16],[36,17,36,26],[38,24,38,35],[38,2,38,7],[38,8,38,12],[37,27,37,35],[38,13,38,23],[37,7,37,16],[37,17,37,26],[23,3,23,35],[24,2,24,19],[21,3,21,10],[18,5,18,6],[24,20,24,27],[24,28,24,35],[18,7,18,35],[35,9,35,16],[31,23,31,30],[30,7,30,20],[30,23,30,30],[33,2,33,35],[9,2,9,11],[16,5,16,35],[5,15,5,26],[12,29,12,34],[12,3,12,27],[14,5,14,35],[12,1,12,2],[5,28,5,35],[5,5,5,12],[1,1,1,11],[1,12,1,35],[39,8,39,12],[39,13,39,23],[37,2,37,6],[39,24,39,35],[21,12,21,35],[25,2,27,19],[34,17,34,25],[36,27,36,35],[25,20,25,27],[25,28,25,35],[34,26,34,35],[26,20,26,30],[35,26,35,35],[30,2,30,5],[28,2,28,12],[28,23,28,31],[34,2,34,8],[34,9,34,16],[3,2,3,3],[3,4,3,33],[13,1,13,2],[13,3,13,34],[41,2,41,18],[41,19,41,35],[59,1,59,35],[48,28,48,35],[46,2,46,6],[46,7,46,16],[47,2,47,5],[43,26,43,35],[56,28,56,35],[48,2,48,5],[45,2,45,6],[45,7,45,16],[43,9,43,16],[43,17,43,25],[44,26,44,35],[44,2,44,8],[47,20,47,27],[46,17,46,26],[45,27,45,35],[43,2,43,8],[45,17,45,26],[47,10,47,19],[55,20,55,27],[58,1,58,35]]}
[]
[null,"Podmiot (Imię i Nazwisko/Nazwa):",null,null,null,null,null,null,null,null,null,null,{"$f":"'I.i II Ogólne i  Ident.'!U34&'I.i II Ogólne i  Ident.'!W38&'I.i II Ogólne i  Ident.'!AD34&'I.i II Ogólne i  Ident.'!W38&'I.i II Ogólne i  Ident.'!C34","v":"  "}]
[]
[null,null,"II.A. ",null,"DANE"]
[]
[null,null,null,null,null,"WSPÓŁPOSIADACZA",null,null,null,null,null,null,null,null,null,"WSPÓLNIKA SPÓŁKI CYWILNEJ ",null,null,null,null,null,null,null,null,null,null,null,null,"WSPÓŁMAŁŻONKA"]
[]
[]
[]
[null,null,"1. NUMER IDENTYFIKACYJNY:",null,null,null,null,null,null,null,null,null,"1.1.",null,null,null,null,null,null,null,null,null,null,null,"1.2.",null,null,null,null,null,null,null,null,null,null,null,null,null,null,"(wybierz z listy)"]
[null,null,null,null,null,null,null,null,null,null,null,null,null,null,null,null,null,null,null,null,null,null,null,null,null,null,null,null,null,null,null,null,null,null,null,null,null,null,null,"TAK"]
[null,null,null,null,null,null,null,null,null,null,null,null,null,null,null,null,null,null,null,null,null,null,null,null,null,null,null,null,null,null,null,null,null,null,null,null,null,null,null,"NIE"]
[null,"1.3. ",null,"Wpisany numer jest numerem nadanym osobie, której dane zawarto poniżej",null,null,null,null,null,null,null,null,null,null,null,null,null,null,null,null,null,null,null,null,null,null,null,null,null,"(wybierz z listy)"]
[null,"1.4. ",null,"Rodzaj powiązania podmiotu ubiegającego się o przyznanie pomocy z posiadaczem numeru:"]
[null,null,null,null,null,"podmiot ubiegający się o przyznanie pomocy jest współposiadaczem gospodarstwa rolnego",null,null,null,null,null,null,null,null,null,null,null,null,null,null,null,null,null,null,null,null,null,null,null,null,null,null,null,null,null,null,null,null,null,"X"]
[null,null,null,null,null,null,null,null,null,null,null,null,null,null,null,null,null,null,null,null,null,null,null,null,null,null,null,null,null,null,null,null,null,null,null,null,null,null,null,"(wybierz z listy)"]
[null,null,null,null,null,"podmiot ubiegający się o przyznanie pomocy jest małżonkiem posiadacza numeru identyfikacyjnego",null,null,null,null,null,null,null,null,null,null,null,null,null,null,null,null,null,null,null,null,null,null,null,null,null,null,null,null,null,null,null,null,null,"OSOBA FIZYCZNA"]
[null,null,null,null,null,null,null,null,null,null,null,null,null,null,null,null,null,null,null,null,null,null,null,null,null,null,null,null,null,null,null,null,null,null,null,null,null,null,null,"OSOBA PRAWNA"]
[null,null,null,null,null,"inne: ",null,null,null,null,null,null,null,null,null,null,null,null,null,null,null,null,null,null,null,null,null,null,null,null,null,null,null,null,null,null,null,null,null,"SPÓŁKA OSOBOWA W ROZUMIENIU KODEKSU SPÓŁEK HANDLOWYCH"]
[null,null,null,null,null,null,null,null,null,null,null,null,null,null,null,null,null,null,null,null,null,null,null,null,null,null,null,null,null,null,null,null,null,null,null,null,null,null,null,"WSPÓLNICY SPÓŁKI CYWILNEJ"]
[]
[null,null,"2.","Rodzaj podmiotu:",null,null,null,null,null,null,null,null,"(wybierz z listy)"]
[null,null,null,null,null,null,null,null,null,null,null,null,null,null,null,null,null,null,null,null,null,null,null,null,null,null,null,null,null,null,null,null,null,null,null,null,null,null,null,null,null,"(wybierz z listy)"]
[null,null,"3.","Dane identyfikacyjne:",null,null,null,null,null,null,null,null,null,null,null,null,null,null,null,null,null,null,null,null,null,null,null,null,null,null,null,null,null,null,null,null,null,null,null,null,null,"KOBIETA "]
[null,null,"3.1. Nazwisko/Nazwa: ",null,null,null,null,null,null,null,null,null,null,null,null,null,null,null,null,null,"3.2. Pierwsze imię",null,null,null,null,null,null,null,"3.3. Drugie Imię",null,null,null,null,null,null,null,null,null,null,null,null,"MĘŻCZYZNA "]
[]
[null,null,null,null,null,null,null,null,null,null,null,null,null,null,null,null,null,null,null,null,"3.4. PESEL/data urodzenia"]
[]
[null,null,"3.5. NIP",null,null,null,null,null,null,null,null,null,null,"3.6 REGON",null,null,null,null,null,null,null,null,null,"3.7. KRS"]
[]
[null,null,"3.8. Kod kraju",null,null,null,null,"3.9. Numer paszportu lub innego dokumentu tożsamości ",null,null,null,null,null,null,null,null,null,null,null,null,null,null,null,"3.10. Płeć:"]
[null,null,null,null,null,null,null,null,null,null,null,null,null,null,null,null,null,null,null,null,null,null,null,"(wybierz z listy)"]
[]
[null,null,"4. Adres  (zamieszkania osoby fizycznej lub siedziby w przypadku pozostałych form prawnych)"]
[null,null,"4.1. Kraj",null,null,null,null,null,null,"4.2. Województwo",null,null,null,null,null,null,null,"4.3. Powiat",null,null,null,null,null,null,null,null,"4.4. Gmina"]
[]
[null,null,"4.5. Kod pocztowy",null,null,null,null,"4.6. Poczta",null,null,null,null,null,null,null,null,null,"4.7. Miejscowość",null,null,null,null,null,null,null,null,null,"4.8 Ulica"]
[]
[null,null,"4.9. Nr domu",null,null,null,null,null,"4.10. Nr lokalu",null,null,null,null,"4.11. Telefon stacjonarny/ komórkowy",null,null,null,null,null,null,null,null,null,null,"4.12. Faks"]
[]
[null,null,"4.13. E-mail",null,null,null,null,null,null,null,null,null,null,null,null,null,null,null,null,"4.14. Adres www"]
[]
[null,null,"5. Adres do korespondencji"]
[null,null,"5.1. Kraj",null,null,null,null,null,null,"5.2. Województwo",null,null,null,null,null,null,null,"5.3. Powiat",null,null,null,null,null,null,null,null,"5.4. Gmina"]
[]
[null,null,"5.5. Kod pocztowy",null,null,null,null,"5.6. Poczta",null,null,null,null,null,null,null,null,null,"5.7. Miejscowość",null,null,null,null,null,null,null,null,null,"5.8 Ulica"]
[]
[null,null,"5.9. Nr domu",null,null,null,"5.10. Nr lokalu",null,null,null,"5.11. Telefon stacjonarny/ komórkowy",null,null,null,null,null,null,null,null,null,"5.12. Faks",null,null,null,null,null,null,null,"5.13. E-mail"]
[]
[]
[null,null,"6. Dane osób upoważnionych do reprezentowania współposiadacza/ wspólnika spółki cywilnej"]
[null,null,"Lp.","Nazwisko/Nazwa",null,null,null,null,null,null,null,null,null,null,null,null,"Pierwsze imię",null,null,null,null,null,null,null,null,null,null,"PESEL"]
[null,null,"6.1"]
[]
[null,null,"7. Dane pełnomocnika współposiadacza/ wspólnika spółki cywilnej/ współmałżonka"]
[null,null,"7.1. Nazwisko/Nazwa: ",null,null,null,null,null,null,null,null,null,null,null,null,null,null,null,null,null,"7.2. Pierwsze imię",null,null,null,null,null,null,null,"7.3. PESEL"]
[]
[]
[null,"Oświadczam, iż przyjmuję do wiadomości, że: "]
[null,"a) zebrane dane osobowe będą przetwarzane przez Agencję Restrukturyzacji i Modernizacji Rolnictwa z siedzibą: 00-175 Warszawa Al. Jana Pawła II 70, zgodnie z przepisami ustawy z dnia 29 sierpnia 1997 r. o ochronie danych osobowych (Dz. U. z 2016 r. poz. 922) w celu przyznania pomocy finansowej i płatności w ramach operacji typu „Modernizacja gospodarstw rolnych” w ramach poddziałania „Wsparcie inwestycji w gospodarstwach rolnych\","]
[null,"b) przysługuje mi, jako osobie fizycznej, prawo wglądu do moich danych osobowych oraz do ich poprawiania."]
[]
[]
[null,null,null,null,null,null,null,null,null,null,null,null,null,null,null,null,null,"(data i podpis współposiadacza/ wspólnika spółki cywilnej/ współmałżonka/ pełnomocnika współposiadacza/ wspólnika spółki cywilnej/ współmałżonka/ osoby reprezentującej współposiadacza/ wspólnika spółki cywilnej"]

{"sheet":"III działalność","index":3,"n_rows":48,"n_cols":48,"rows_kept":48,"cut":false,"hidden":false,"merged":[[38,2,40,3],[1,1,1,9],[1,10,1,36],[35,2,35,3],[37,2,37,3],[37,4,37,36],[13,29,14,29],[13,32,14,32],[18,2,20,3],[18,4,20,29],[31,2,31,3],[31,4,31,27],[31,28,31,35],[13,30,14,30],[13,31,14,31],[28,4,28,25],[28,28,28,35],[22,2,25,2],[28,2,28,3],[15,4,15,29],[13,2,14,3],[13,4,14,26],[3,2,3,36],[5,2,5,3],[5,4,5,35],[6,4,10,26],[7,2,7,3],[8,28,8,35],[9,2,9,3],[45,4,45,36],[22,4,25,26],[22,28,25,35],[27,30,27,32],[27,34,27,36],[43,4,43,25],[29,28,29,37],[35,4,36,29],[35,30,35,35],[39,4,41,35]]}
[]
[null,"Podmiot (Imię i Nazwisko/Nazwa):",null,null,null,null,null,null,null,null,{"$f":"'I.i II Ogólne i  Ident.'!U34&'I.i II Ogólne i  Ident.'!W38&'I.i II Ogólne i  Ident.'!AD34&'I.i II Ogólne i  Ident.'!W38&'I.i II Ogólne i  Ident.'!C34","v":"  "}]
[]
[null,null,"III. CHARAKTERYSTYKA PROWADZONEJ DZIAŁALNOŚCI I PODMIOTU UBIEGAJĄCEGO SIĘ O PRZYZNANIE POMOCY"]
[]
[null,null,"1.",null,"Informacje dotyczące gospodarstwa"]
[null,null,null,null,"Gospodarstwo stanowi współwłasność (w tym jest przedmiotem małżeńskiej wspólności ustawowej lub umownej wspólności majątkowej) lub jest przedmiotem współposiadania2"]
[null,null,"1.1",null,null,null,null,null,null,null,null,null,null,null,null,null,null,null,null,null,null,null,null,null,null,null,null,null,null,null,null,null,null,null,null,null,null,null,null,null,null,"(wybierz z listy)"]
[null,null,null,null,null,null,null,null,null,null,null,null,null,null,null,null,null,null,null,null,null,null,null,null,null,null,null,null,"(wybierz z listy)",null,null,null,null,null,null,null,null,null,null,null,null,"TAK"]
[null,null,null,null,null,null,null,null,null,null,null,null,null,null,null,null,null,null,null,null,null,null,null,null,null,null,null,null,null,null,null,null,null,null,null,null,null,null,null,null,null,"NIE"]
[]
[]
[]
[null,null,"1.2.",null,"Liczba współwłaścicieli lub współposiadaczy gospodarstwa"]
[]
[]
[]
[]
[null,null,"1.3.",null,"Liczba współposiadaczy w odniesieniu do nieruchomości, będących przedmiotem współposiadania, wchodzących w skład gospodarstwa podmiotu ubiegającego się o przyznanie pomocy"]
[]
[]
[null,null,null,null,null,null,null,null,null,null,null,null,null,null,null,null,null,null,null,null,null,null,null,null,null,null,null,null,null,null,null,null,null,null,null,null,null,null,null,null,null,"(wybierz z listy)"]
[null,null,"1.4",null,"Siedziba gospodarstwa położona jest na obszarze o niekorzystnych warunkach gospodarowania (ONW)",null,null,null,null,null,null,null,null,null,null,null,null,null,null,null,null,null,null,null,null,null,null,null,"(wybierz z listy)",null,null,null,null,null,null,null,null,null,null,null,null,"nie dotyczy"]
[null,null,null,null,null,null,null,null,null,null,null,null,null,null,null,null,null,null,null,null,null,null,null,null,null,null,null,null,null,null,null,null,null,null,null,null,null,null,null,null,null,"obszar górski"]
[null,null,null,null,null,null,null,null,null,null,null,null,null,null,null,null,null,null,null,null,null,null,null,null,null,null,null,null,null,null,null,null,null,null,null,null,null,null,null,null,null,"obszar ze specyficznymi utrudnieniami"]
[null,null,null,null,null,null,null,null,null,null,null,null,null,null,null,null,null,null,null,null,null,null,null,null,null,null,null,null,null,null,null,null,null,null,null,null,null,null,null,null,null,"obszar nizinny (I lub II strefa)"]
[]
[]
[null,null,"1.5",null,"Działy specjalne produkcji rolnej",null,null,null,null,null,null,null,null,null,null,null,null,null,null,null,null,null,null,null,null,null,null,null,"(wybierz z listy)"]
[null,null,null,null,null,null,null,null,null,null,null,null,null,null,null,null,null,null,null,null,null,null,null,null,null,null,null,null,null,null,null,null,null,null,null,null,null,null,","]
[]
[null,null,"1.6",null,"Gospodarstwo, którego dotyczy operacja, jest gospodarstwem ekologicznym",null,null,null,null,null,null,null,null,null,null,null,null,null,null,null,null,null,null,null,null,null,null,null,"(wybierz z listy)"]
[]
[]
[]
[null,null,"2.",null,"Podmiot ubiegający się o przyznanie pomocy jest młodym rolnikiem w rozumieniu § 4 ust. 6 pkt 3 rozporządzenia Ministra Rolnictwa i Rozwoju Wsi z dnia 21 sierpnia 2015 r. w sprawie szczegółowych warunków i trybu przyznawania oraz wypłaty pomocy finansowej na operacje typu „Modernizacja gospodarstw rolnych” w ramach poddziałania „Wsparcie inwestycji w gospodarstwach rolnych” objętego PROW na lata 2014–2020 (Dz.U. poz. 1371, z późn. zm.), zwanego dalej rozporządzeniem",null,null,null,null,null,null,null,null,null,null,null,null,null,null,null,null,null,null,null,null,null,null,null,null,null,"(wybierz z listy)"]
[]
[null,null,"2.1.",null,"Kwalifikacje zawodowe podmiotu ubiegającego się o przyznanie pomocy, będącego młodym rolnikiem\nw rozumieniu § 4 ust. 6 pkt 3 rozporządzenia"]
[]
[null,null,null,null,"(wybierz z listy)"]
[]
[null,null,null,null,null,null,null,null,null,null,null,null,null,null,null,null,null,null,null,null,null,null,null,null,null,null,null,null,null,null,null,null,null,null,null,null,null,null,null,null,null,null,null,null,null,null,null,"(wybierz z listy)"]
[null,null,null,null,null,null,null,null,null,null,null,null,null,null,null,null,null,null,null,null,null,null,null,null,null,null,null,null,null,null,null,null,null,null,null,null,null,null,null,null,null,null,null,null,null,null,null,"stopień naukowy doktora lub ukończone studia trzeciego stopnia z dziedziny nauk rolniczych lub z dziedziny nauk weterynaryjnych"]
[null,null,"2.2",null,"Data rozpoczęcia kierowania gospodarstwem",null,null,null,null,null,null,null,null,null,null,null,null,null,null,null,null,null,null,null,null,null,null,null,"-",null,null,"-",null,null,null,null,null,null,null,null,null,null,null,null,null,null,null,"ukończone studia pierwszego stopnia lub studia drugiego stopnia lub jednolite studia magisterskie, lub studia magisterskie na kierunku: rolnictwo, ogrodnictwo, weterynaria - w przypadku gdy w gospodarstwie są prowadzone chów lub hodowla zwierząt, technika rolnicza i leśna, zootechnika lub na kierunkach studiów, w ramach których zakres kształcenia albo standardy kształcenia obejmują treści związane z działalnością rolniczą, w wymiarze łącznym co najmniej 200 godzin lub co najmniej 30 punktów uzyskanych w ramach Europejskiego Systemu Transferu i Akumulacji Punktów Zaliczonych (European Credit Transfer System),"]
[null,null,null,null,null,null,null,null,null,null,null,null,null,null,null,null,null,null,null,null,null,null,null,null,null,null,null,null,null,null,null,null,null,null,null,null,null,null,null,null,null,null,null,null,null,null,null,"ukończone studia pierwszego stopnia lub studia drugiego stopnia, lub jednolite studia magisterskie, lub studia magisterskie na kierunku innym niż wymienione w pkt 5.1.2, oraz co najmniej 3-letni staż pracy w rolnictwie lub ukończone studia podyplomowe w zakresie związanym z działalnością rolniczą,"]
[null,null,null,null,"2 W przypadku, gdy w polu 1.1 wybrano TAK, dane każdego ze współposiadaczy (w tym małżonka, jeśli dotyczy) należy umieścić w części wniosku II.A. Dane współposiadacza/ wspólnika spółki cywilnej/ współmałżonka.",null,null,null,null,null,null,null,null,null,null,null,null,null,null,null,null,null,null,null,null,null,null,null,null,null,null,null,null,null,null,null,null,null,null,null,null,null,null,null,null,null,null,"kwalifikacje w zawodzie rolniczym na poziomie kwalifikacji technika rolnika, ogrodnika, architektury krajobrazu, hodowcy koni, pszczelarza, weterynarii - w przypadku gdy w gospodarstwie są prowadzone chów lub hodowla zwierząt, agrobiznesu, mechanizacji rolnictwa, turystyki wiejskiej, lub kwalifikacje w zawodzie rolniczym na poziomie zasadniczej szkoły zawodowej: rolnik, ogrodnik, pszczelarz, mechanik operator pojazdów i maszyn rolniczych,"]
[null,null,null,null,null,null,null,null,null,null,null,null,null,null,null,null,null,null,null,null,null,null,null,null,null,null,null,null,null,null,null,null,null,null,null,null,null,null,null,null,null,null,null,null,null,null,null,"tytuł wykwalifikowanego robotnika lub tytuł mistrza, lub tytuł zawodowy lub tytuł zawodowy mistrza, w zawodzie: rolnik, ogrodnik, pszczelarz, mechanik operator pojazdów i maszyn rolniczych, uzyskany w formach pozaszkolnych oraz co najmniej 3-letni staż pracy w rolnictwie,"]
[null,null,null,null,null,null,null,null,null,null,null,null,null,null,null,null,null,null,null,null,null,null,null,null,null,null,null,null,null,null,null,null,null,null,null,null,null,null,null,null,null,null,null,null,null,null,null,"wykształcenie średnie oraz co najmniej 4-letni staż pracy w rolnictwie."]

{"sheet":"IV.Opis operacji","index":4,"n_rows":66,"n_cols":50,"rows_kept":66,"cut":false,"hidden":false,"merged":[[65,1,66,1],[62,2,63,26],[1,1,1,9],[1,10,1,36],[2,1,2,37],[3,2,3,12],[5,2,5,36],[23,2,23,36],[65,2,66,26],[65,29,65,36],[62,29,62,36],[24,29,24,35],[24,19,24,25],[36,30,36,32],[36,34,36,36],[37,2,37,27],[37,29,37,36],[10,1,11,1],[10,2,11,24],[12,2,14,3],[12,4,14,17],[12,25,14,36],[13,18,13,23],[62,1,63,1],[64,30,64,32],[64,34,64,36],[15,2,17,3],[15,4,17,17],[15,25,17,36],[16,18,16,23],[18,2,19,3],[18,4,19,17],[18,25,19,36],[19,18,19,23],[6,2,6,36],[8,2,8,36],[20,2,20,36],[22,2,22,36],[22,47,22,81],[25,2,25,34],[26,2,26,21],[27,1,29,1],[27,2,29,28],[27,30,27,32],[27,34,27,36],[28,29,28,36],[30,1,32,1],[30,2,32,28],[30,30,30,32],[30,34,30,36],[31,29,31,36],[33,1,34,1],[33,30,33,32],[33,34,33,36],[34,2,34,27],[34,29,34,36],[43,2,43,14],[43,15,43,20],[43,21,43,25],[43,26,43,36],[44,2,44,14],[44,15,44,20],[44,21,44,25],[44,26,44,36],[39,2,39,36],[41,2,41,14],[41,15,41,25],[41,26,41,36],[42,2,42,14],[42,15,42,25],[42,26,42,36],[52,1,54,1],[52,2,54,27],[52,31,52,33],[52,34,52,36],[53,29,53,36],[45,2,45,6],[45,7,45,16],[45,17,45,26],[45,27,45,36],[46,2,46,6],[46,7,46,16],[46,17,46,26],[46,27,46,36],[56,2,58,3],[56,4,58,17],[56,18,58,22],[56,23,57,36],[58,23,58,29],[48,2,48,36],[50,2,50,36],[58,30,58,36],[47,2,47,36],[73,2,74,28],[76,2,77,28],[79,2,81,28],[59,2,59,3],[59,4,59,17],[59,18,59,22],[59,23,59,29],[59,30,59,36],[70,2,71,28],[60,2,60,3],[60,4,60,17],[60,18,60,22],[60,23,60,29],[60,30,60,36]]}
[]
[null,"Podmiot (Imię i Nazwisko/Nazwa):",null,null,null,null,null,null,null,null,{"$f":"'I.i II Ogólne i  Ident.'!U34&'I.i II Ogólne i  Ident.'!W38&'I.i II Ogólne i  Ident.'!AD34&'I.i II Ogólne i  Ident.'!W38&'I.i II Ogólne i  Ident.'!C34","v":"  "}]
[]
[null,null,"IV. OPIS PLANOWANEJ OPERACJI"]
[]
[null,"1.","Zgodność operacji z celami Programu Rozwoju Obszarów Wiejskich na lata 2014-2020, zwanego dalej Programem"]
[null,"1.1. ","Cel szczegółowy"]
[]
[null,null,"Poprawa wyników gospodarczych wszystkich gospodarstw oraz ułatwianie restrukturyzacji i modernizacji gospodarstw, szczególnie z myślą o zwiększeniu uczestnictwa w rynku i zorientowania na rynek, a także zróżnicowania produkcji rolnej (2A)"]
[]
[null,"1.2. ","Zgodność operacji z celami przekrojowymi Programu"]
[]
[null,null,"1.2.1. ",null,"Innowacyjność"]
[null,null,null,null,null,null,null,null,null,null,null,null,null,null,null,null,null,null,"(wybierz z listy)"]
[null,null,null,null,null,null,null,null,null,null,null,null,null,null,null,null,null,null,null,null,null,null,null,null,null,null,null,null,null,null,null,null,null,null,null,null,null,null,null,null,"TAK"]
[null,null,"1.2.2.",null,"Środowisko ",null,null,null,null,null,null,null,null,null,null,null,null,null,null,null,null,null,null,null,null,null,null,null,null,null,null,null,null,null,null,null,null,null,null,null,"NIE"]
[null,null,null,null,null,null,null,null,null,null,null,null,null,null,null,null,null,null,"(wybierz z listy)"]
[]
[null,null,"1.2.3.",null,"Klimat"]
[null,null,null,null,null,null,null,null,null,null,null,null,null,null,null,null,null,null,"(wybierz z listy)"]
[null,"1.3","Cel operacji"]
[]
[null,null,{"$f":"AX24","v":"Cel operacji wpisywany automatycznie po wybraniu obszaru wsparcia na stronie tytułowej."}]
[null,null,null,null,null,null,null,null,null,null,null,null,null,null,null,null,null,null,null,null,null,null,null,null,null,null,null,null,null,null,null,null,null,null,null,null,null,null,null,null,null,null,null,null,null,null,null,null,null,{"$f":"IF('I.i II Ogólne i  Ident.'!B7=\"(wybierz z listy obszar wsparcia)\",\"Cel operacji wpisywany automatycznie po wybraniu obszaru wsparcia na stronie tytułowej.\",IF('I.i II Ogólne i  Ident.'!B7=\"rozwój produkcji prosiąt\",\"Zwiększenie rentowności i konkurencyjności gospodarstwa w obszarze rozwój produkcji prosiąt.\",IF('I.i II Ogólne i  Ident.'!B7=\"rozwój produkcji mleka krowiego\",\"Zwiększenie rentowności i konkurencyjności gospodarstwa w obszarze rozwój produkcji mleka krowiego.\",AX29)))","v":"Cel operacji wpisywany automatycznie po wybraniu obszaru wsparcia na stronie tytułowej."}]
[]
[]
[null,"2.","Dodatkowo operacja przyczyni się do:"]
[null,"2.1.","poprawy efektywności korzystania z zasobów wodnych w gospodarstwie"]
[null,null,null,null,null,null,null,null,null,null,null,null,null,null,null,null,null,null,null,null,null,null,null,null,null,null,null,null,null,"(wybierz z listy)",null,null,null,null,null,null,null,null,null,null,null,null,null,null,null,null,"(wybierz z listy)",null,null,{"$f":"IF('I.i II Ogólne i  Ident.'!B7=\"rozwój produkcji bydła mięsnego\",\"Zwiększenie rentowności i konkurencyjności gospodarstwa w obszarze rozwój produkcji bydła mięsnego.\",AX35)","v":" "}]
[null,null,null,null,null,null,null,null,null,null,null,null,null,null,null,null,null,null,null,null,null,null,null,null,null,null,null,null,null,null,null,null,null,null,null,null,null,null,null,null,null,null,null,null,null,null,"TAK"]
[null,"2.2.","poprawy efektywności wykorzystania energii w gospodarstwie",null,null,null,null,null,null,null,null,null,null,null,null,null,null,null,null,null,null,null,null,null,null,null,null,null,null,null,null,null,null,null,null,null,null,null,null,null,null,null,null,null,null,null,"NIE"]
[null,null,null,null,null,null,null,null,null,null,null,null,null,null,null,null,null,null,null,null,null,null,null,null,null,null,null,null,null,"(wybierz z listy)"]
[]
[null,"2.3."]
[null,null,"zwiększenia wykorzystywania odnawialnych źródeł energii w gospodarstwie",null,null,null,null,null,null,null,null,null,null,null,null,null,null,null,null,null,null,null,null,null,null,null,null,null,null,"(wybierz z listy)",null,null,null,null,null,null,null,null,null,null,null,null,null,null,null,null,null,null,null,{"$f":"IF('I.i II Ogólne i  Ident.'!B7=\"związanym z racjonalizacją technologii produkcji, wprowadzeniem innowacji, zmianą profilu produkcji, zwiększeniem skali produkcji, poprawą jakości produkcji lub zwiększeniem wartości dodanej produktu\",AX38,\" \")","v":" "}]
[]
[]
[null,"2.4.","redukcji emisji gazów cieplarnianych i amoniaku z rolnictwa w gospodarstwie",null,null,null,null,null,null,null,null,null,null,null,null,null,null,null,null,null,null,null,null,null,null,null,null,null,null,"(wybierz z listy)",null,null,null,null,null,null,null,null,null,null,null,null,null,null,null,null,null,null,null,"Zwiększenie rentowności i konkurencyjności gospodarstwa w obszarze związanym z racjonalizacją technologii produkcji, wprowadzeniem innowacji, zmianą profilu produkcji, zwiększeniem skali produkcji, poprawą jakości produkcji lub zwiększeniem wartości dodanej produktu."]
[]
[null,"3.","Lokalizacja operacji (miejsce realizacji inwestycji)"]
[]
[null,null,"3.1.1. Województwo",null,null,null,null,null,null,null,null,null,null,null,null,"3.1.2. Powiat",null,null,null,null,null,null,null,null,null,null,"3.1.3. Gmina",null,null,null,null,null,null,null,null,null,null,null,null,null,null,null,null,null,null,null,"(wybierz z listy)"]
[null,null,"(wybierz z listy)",null,null,null,null,null,null,null,null,null,null,null,null,null,null,null,null,null,null,null,null,null,null,null,null,null,null,null,null,null,null,null,null,null,null,null,null,null,null,null,null,null,null,null,"DOLNOŚLĄSKIE"]
[null,null,"3.1.4. Ulica",null,null,null,null,null,null,null,null,null,null,null,null,"3.1.5. Nr domu",null,null,null,null,null,"3.1.6. Nr lokalu",null,null,null,null,"3.1.7. Miejscowość",null,null,null,null,null,null,null,null,null,null,null,null,null,null,null,null,null,null,null,"KUJAWSKO-POMORSKIE"]
[null,null,null,null,null,null,null,null,null,null,null,null,null,null,null,null,null,null,null,null,null,null,null,null,null,null,null,null,null,null,null,null,null,null,null,null,null,null,null,null,null,null,null,null,null,null,"LUBELSKIE"]
[null,null,"3.1.8. Kod pocztowy",null,null,null,null,"3.1.9. Poczta",null,null,null,null,null,null,null,null,null,"3.1.10. Nazwa i nr obrębu ewidencyjnego",null,null,null,null,null,null,null,null,null,"3.1.11. Nr działki ewidencyjnej",null,null,null,null,null,null,null,null,null,null,null,null,null,null,null,null,null,null,"LUBUSKIE"]
[null,null,null,null,null,null,null,null,null,null,null,null,null,null,null,null,null,null,null,null,null,null,null,null,null,null,null,null,null,null,null,null,null,null,null,null,null,null,null,null,null,null,null,null,null,null,"ŁÓDZKIE"]
[null,null,"Uwaga: Szczegółowe dane dotyczące działek ewidencyjnych wchodzących w skład nieruchomości, na której będzie realizowana operacja bezpośrednio związana z nieruchomością (tj. dotycząca budowy, przebudowy, remontu połączonego z modernizacją, nasadzenia, infrastruktury, zagospodarowania terenu oraz zakupu maszyn, urządzeń, sprzętu i wyposażenia związanego (wykorzystywanego)  z nieruchomością), należy umieścić w Biznesplanie będącym załącznikiem do wniosku o przyznanie pomocy.",null,null,null,null,null,null,null,null,null,null,null,null,null,null,null,null,null,null,null,null,null,null,null,null,null,null,null,null,null,null,null,null,null,null,null,null,null,null,null,null,null,null,null,"MAŁOPOLSKIE"]
[null,"3.2","Miejsce przechowywania/garażowania (inne niż wskazane w pkt. 3)",null,null,null,null,null,null,null,null,null,null,null,null,null,null,null,null,null,null,null,null,null,null,null,null,null,null,null,null,null,null,null,null,null,null,null,null,null,null,null,null,null,null,null,"MAZOWIECKIE"]
[null,null,null,null,null,null,null,null,null,null,null,null,null,null,null,null,null,null,null,null,null,null,null,null,null,null,null,null,null,null,null,null,null,null,null,null,null,null,null,null,null,null,null,null,null,null,"OPOLSKIE "]
[null,"3.2.1",null,null,null,null,null,null,null,null,null,null,null,null,null,null,null,null,null,null,null,null,null,null,null,null,null,null,null,null,null,null,null,null,null,null,null,null,null,null,null,null,null,null,null,null,"PODKARPACKIE"]
[null,null,null,null,null,null,null,null,null,null,null,null,null,null,null,null,null,null,null,null,null,null,null,null,null,null,null,null,null,null,null,null,null,null,null,null,null,null,null,null,null,null,null,null,null,null,"PODLASKIE"]
[null,"4.","OPERACJA DOTYCZY PRODUKCJI W DZIEDZINIE OBJĘTEJ LIMITOWANIEM PRODUKCJI",null,null,null,null,null,null,null,null,null,null,null,null,null,null,null,null,null,null,null,null,null,null,null,null,null,null,null,null,null,null,null,null,null,null,null,null,null,null,null,null,null,null,null,"POMORSKIE"]
[null,null,null,null,null,null,null,null,null,null,null,null,null,null,null,null,null,null,null,null,null,null,null,null,null,null,null,null,null,"(wybierz z listy)",null,null,null,null,null,null,null,null,null,null,null,null,null,null,null,null,"ŚLĄSKIE"]
[null,null,null,null,null,null,null,null,null,null,null,null,null,null,null,null,null,null,null,null,null,null,null,null,null,null,null,null,null,null,null,null,null,null,null,null,null,null,null,null,null,null,null,null,null,null,"ŚWIĘTOKRZYSKIE"]
[null,null,null,null,null,null,null,null,null,null,null,null,null,null,null,null,null,null,null,null,null,null,null,null,null,null,null,null,null,null,null,null,null,null,null,null,null,null,null,null,null,null,null,null,null,null,"WARMIŃSKO-MAZURSKIE"]
[null,null,"L.p.",null,"Wielkość limitów produkcji przyznanych podmiotowi ubiegającemu się o przyznanie pomocy",null,null,null,null,null,null,null,null,null,null,null,null,null,"Jednostka",null,null,null,null,"Wielkość",null,null,null,null,null,null,null,null,null,null,null,null,null,null,null,null,null,null,null,null,null,null,"WIELKOPOLSKIE"]
[null,null,null,null,null,null,null,null,null,null,null,null,null,null,null,null,null,null,null,null,null,null,null,null,null,null,null,null,null,null,null,null,null,null,null,null,null,null,null,null,null,null,null,null,null,null,"ZACHODNIOPOMORSKIE"]
[null,null,null,null,null,null,null,null,null,null,null,null,null,null,null,null,null,null,null,null,null,null,null,"Obecna",null,null,null,null,null,null,"Docelowa"]
[null,null,"1."]
[null,null,"2."]
[]
[null,"5.","Operacja dotyczy wsparcia gospodarstwa w zakresie chowu drobiu - produkcja ekologiczna",null,null,null,null,null,null,null,null,null,null,null,null,null,null,null,null,null,null,null,null,null,null,null,null,null,null,"(wybierz z listy)"]
[]
[]
[null,"6.","Operacja dotyczy wsparcia gospodarstwa w zakresie chowu drobiu - zmiana sposobu chowu z nieekologicznego na ekologiczny",null,null,null,null,null,null,null,null,null,null,null,null,null,null,null,null,null,null,null,null,null,null,null,null,null,null,"(wybierz z listy)"]

{"sheet":"IV A. Kryteria prosięta","index":5,"n_rows":31,"n_cols":54,"rows_kept":31,"cut":false,"hidden":false,"merged":[[3,1,3,37],[1,1,1,9],[1,10,1,36],[4,2,5,36],[7,2,7,19],[7,20,7,27],[30,2,30,34],[27,1,29,1],[27,2,29,28],[28,29,28,36],[16,29,16,36],[17,31,17,33],[18,1,21,1],[16,21,16,27],[23,29,23,36],[18,2,21,28],[19,29,19,36],[16,2,16,20],[22,1,25,1],[22,2,25,28],[7,29,7,36],[13,21,13,28],[14,2,14,27],[15,29,15,36],[15,21,15,28],[8,1,10,1],[8,2,10,27],[11,1,12,1],[9,29,9,36],[12,29,12,36],[14,29,14,36],[11,2,12,27],[13,29,13,36]]}
[]
[null,"Podmiot (Imię i Nazwisko/Nazwa):",null,null,null,null,null,null,null,null,{"$f":"'I.i II Ogólne i  Ident.'!U34&'I.i II Ogólne i  Ident.'!W38&'I.i II Ogólne i  Ident.'!AD34&'I.i II Ogólne i  Ident.'!W38&'I.i II Ogólne i  Ident.'!C34","v":"  "}]
[]
[]
[null,"IV.A.","DANE NA POTRZEBY USTALENIA M.IN. KRYTERIÓW W OBSZARZE ROZWÓJ PRODUKCJI PROSIĄT"]
[]
[]
[]
[null,"1.","W wyniku realizacji operacji wzrost średniej rocznej liczby loch w stadzie wyniesie (w szt.) "]
[null,null,null,null,null,null,null,null,null,null,null,null,null,null,null,null,null,null,null,null,null,null,null,null,null,null,null,null,null,null,null,null,null,null,null,null,null,null,null,null,null,null,null,null,null,null,null,null,null,null,null,null,null,"(wybierz z listy)"]
[null,null,null,null,null,null,null,null,null,null,null,null,null,null,null,null,null,null,null,null,null,null,null,null,null,null,null,null,null,null,null,null,null,null,null,null,null,null,null,null,null,null,null,null,null,null,null,null,null,null,null,null,null,"TAK"]
[null,"2.","W wyniku realizacji operacji średnia roczna liczba loch w stadzie będzie wynosiła (w szt.) 3",null,null,null,null,null,null,null,null,null,null,null,null,null,null,null,null,null,null,null,null,null,null,null,null,null,null,null,null,null,null,null,null,null,null,null,null,null,null,null,null,null,null,null,null,null,null,null,null,null,null,"NIE"]
[]
[]
[null,"3.","Liczba utrzymywanych loch w okresie bazowym (w szt) 3"]
[]
[null,"4.","Liczba prosiąt w okresie bazowym (w szt) 3"]
[null,null,null,null,null,null,null,null,null,null,null,null,null,null,null,null,null,null,null,null,null,null,null,null,null,null,null,null,null,null,null,null,null,null,"NIE"]
[null,"5.","W dniu złożenia wniosku o przyznanie pomocy podmiot ubiegający się o przyznanie pomocy posiada certyfikat lub świadectwo potwierdzające, że uczestniczy w unijnym systemie jakości, o którym mowa w art. 16 ust. 1 lit. a rozporządzenia Parlamentu Europejskiego i Rady (UE) nr 1305/2013 z dnia 17 grudnia 2013 r. w sprawie wsparcia rozwoju obszarów wiejskich przez Europejski Fundusz Rolny na rzecz Rozwoju Obszarów Wiejskich (EFRROW) i uchylającego rozporządzenie Rady (WE) nr 1698/2005 (Dz. Urz. UE L 347 z 20.12.2013, str. 487, z późn. zm.), zwanego dalej „rozporządzeniem nr 1305/2013\", lub krajowym systemie jakości, o którym mowa w art. 16 ust. 1 lit. b rozporządzenia nr 1305/2013, w ramach działania „Systemy jakości produktów rolnych i środków spożywczych” objętego PROW 2014-2020, a operacja dotyczy produkcji objętej tym systemem,  z wyłączeniem systemu rolnictwa ekologicznego, o którym mowa w pkt 6\n\n\n\n\n\n\n"]
[null,null,null,null,null,null,null,null,null,null,null,null,null,null,null,null,null,null,null,null,null,null,null,null,null,null,null,null,null,"(wybierz z listy)"]
[]
[]
[null,"6.","W dniu złożenia wniosku o przyznanie pomocy podmiot ubiegający się o przyznanie pomocy posiada certyfikat potwierdzający uczestnictwo w systemie rolnictwa ekologicznego, o którym mowa w rozporządzeniu Rady (WE) nr 834/2007 z dnia 28 czerwca 2007 r. w sprawie produkcji ekologicznej i znakowania produktów ekologicznych i uchylającym rozporządzenie (EWG) nr 2092/91 (Dz. Urz. UE L 189 z 20.07.2007, str. 1, z późn. zm.), zwanym dalej „rozporządzeniem nr 834/2007”, a operacja dotyczy produkcji objętej tym systemem i suma powierzchni gruntów ornych, sadów, łąk trwałych i pastwisk trwałych w gospodarstwie objętych tym systemem stanowi co najmniej 50% sumy powierzchni gruntów ornych, sadów, łąk trwałych i pastwisk trwałych w tym gospodarstwie"]
[null,null,null,null,null,null,null,null,null,null,null,null,null,null,null,null,null,null,null,null,null,null,null,null,null,null,null,null,null,"(wybierz z listy)"]
[]
[]
[]
[null,"7.","Operacja uwzględnia inwestycje służące ochronie środowiska lub zapobieganiu zmianie klimatu"]
[null,null,null,null,null,null,null,null,null,null,null,null,null,null,null,null,null,null,null,null,null,null,null,null,null,null,null,null,null,"(wybierz z listy)"]
[]
[null,null,"3 Należy wypełnić w oparciu o dane określone w Biznesplanie"]

{"sheet":"IV B. Kryteria mleko","index":6,"n_rows":35,"n_cols":54,"rows_kept":35,"cut":false,"hidden":false,"merged":[[35,2,35,34],[3,2,5,36],[0,2,0,35],[7,2,7,19],[7,20,7,27],[7,29,7,36],[26,29,26,36],[19,2,19,27],[19,29,19,36],[17,29,17,36],[34,2,34,34],[21,2,23,28],[22,29,22,36],[20,31,20,33],[17,2,18,28],[21,1,23,1],[8,1,9,1],[1,1,1,9],[1,10,1,36],[12,1,14,1],[12,2,14,27],[13,29,13,36],[14,29,14,36],[8,2,10,27],[9,29,9,36],[15,21,15,28],[15,29,15,36],[16,21,16,28],[16,29,16,36],[25,1,28,1],[25,2,28,28],[29,31,29,33],[30,1,32,1],[30,2,32,28],[31,29,31,36]]}
[]
[null,"Podmiot (Imię i Nazwisko/Nazwa):",null,null,null,null,null,null,null,null,{"$f":"'I.i II Ogólne i  Ident.'!U34&'I.i II Ogólne i  Ident.'!W38&'I.i II Ogólne i  Ident.'!AD34&'I.i II Ogólne i  Ident.'!W38&'I.i II Ogólne i  Ident.'!C34","v":"  "}]
[]
[null,"IV.B. ","DANE NA POTRZEBY USTALENIA M. IN. KRYTERIÓW W OBSZARZE ROZWÓJ PRODUKCJI MLEKA KROWIEGO"]
[]
[]
[]
[]
[null,"1.","W wyniku realizacji operacji wzrost średniej rocznej liczby krów mlecznych w stadzie wyniesie (w szt.) ",null,null,null,null,null,null,null,null,null,null,null,null,null,null,null,null,null,null,null,null,null,null,null,null,null,null,null,null,null,null,null,null,null,null,null,null,null,null,null,null,null,null,null,null,null,null,null,null,null,null,"(wybierz z listy)"]
[null,null,null,null,null,null,null,null,null,null,null,null,null,null,null,null,null,null,null,null,null,null,null,null,null,null,null,null,null,null,null,null,null,null,null,null,null,null,null,null,null,null,null,null,null,null,null,null,null,null,null,null,null,"TAK"]
[null,null,null,null,null,null,null,null,null,null,null,null,null,null,null,null,null,null,null,null,null,null,null,null,null,null,null,null,null,null,null,null,null,null,null,null,null,null,null,null,null,null,null,null,null,null,null,null,null,null,null,null,null,"NIE"]
[]
[null,"2.","W wyniku realizacji operacji średnia roczna liczba krów mlecznych w stadzie będzie wynosiła (w szt.) 3"]
[]
[]
[]
[]
[null,"3.","Liczba utrzymywanych w okresie bazowym krów mlecznych lub krów, które przekroczą wiek 24 miesięcy najpóźniej w dniu 15 maja roku w którym został złożony wniosek o przyznanie pomocy  (w szt) 3"]
[]
[null,"4.","Wielkość produkcji mleka w okresie bazowym (w l) 3"]
[null,null,null,null,null,null,null,null,null,null,null,null,null,null,null,null,null,null,null,null,null,null,null,null,null,null,null,null,null,null,null,null,null,null,"NIE"]
[null,"5.","W dniu złożenia wniosku o przyznanie pomocy podmiot ubiegający się o przyznanie pomocy posiada certyfikat lub świadectwo potwierdzające, że uczestniczy w unijnym systemie jakości, o którym mowa w art. 16 ust. 1 lit. a rozporządzenia nr 1305/2013, lub krajowym systemie jakości, o którym mowa w art. 16 ust. 1 lit. b rozporządzenia nr 1305/2013, w ramach działania „Systemy jakości produktów rolnych i środków spożywczych” objętego PROW 2014-2020, a operacja dotyczy produkcji objętej tym systemem,  z wyłączeniem systemu rolnictwa ekologicznego, o którym mowa w pkt 6"]
[null,null,null,null,null,null,null,null,null,null,null,null,null,null,null,null,null,null,null,null,null,null,null,null,null,null,null,null,null,"(wybierz z listy)"]
[]
[]
[null,"6.","W dniu złożenia wniosku o przyznanie pomocy podmiot ubiegający się o przyznanie pomocy posiada certyfikat potwierdzający uczestnictwo w systemie rolnictwa ekologicznego, o którym mowa w rozporządzeniu nr 834/2007, a operacja dotyczy produkcji objętej tym systemem i suma powierzchni gruntów ornych, sadów, łąk trwałych i pastwisk trwałych w gospodarstwie objętych tym systemem stanowi co najmniej 50% sumy powierzchni gruntów ornych, sadów, łąk trwałych i pastwisk trwałych w tym gospodarstwie"]
[null,null,null,null,null,null,null,null,null,null,null,null,null,null,null,null,null,null,null,null,null,null,null,null,null,null,null,null,null,"(wybierz z listy)"]
[]
[]
[]
[null,"7.","Operacja uwzględnia inwestycje służące ochronie środowiska lub zapobieganiu zmianie klimatu"]
[null,null,null,null,null,null,null,null,null,null,null,null,null,null,null,null,null,null,null,null,null,null,null,null,null,null,null,null,null,"(wybierz z listy)"]
[]
[]
[null,null,"3 Należy wypełnić w oparciu o dane określone w Biznesplanie"]

{"sheet":"IV C. Kryteria opasy","index":7,"n_rows":34,"n_cols":41,"rows_kept":34,"cut":false,"hidden":false,"merged":[[22,29,22,36],[1,1,1,9],[1,10,1,36],[3,1,3,37],[4,2,5,36],[12,1,14,1],[19,2,19,27],[21,1,24,1],[21,2,24,28],[12,2,14,27],[15,21,15,28],[16,2,16,27],[17,31,17,33],[18,21,18,28],[18,29,18,36],[9,29,9,36],[19,29,19,36],[13,29,13,36],[14,29,14,36],[16,29,16,36],[15,29,15,36],[7,2,7,19],[7,20,7,27],[7,29,7,36],[8,1,9,1],[8,2,10,27],[33,2,33,34],[26,1,29,1],[26,2,29,28],[27,29,27,36],[30,31,30,33],[31,1,32,1],[31,2,32,28],[32,29,32,36]]}
[]
[null,"Podmiot (Imię i Nazwisko/Nazwa):",null,null,null,null,null,null,null,null,{"$f":"'I.i II Ogólne i  Ident.'!U34&'I.i II Ogólne i  Ident.'!W38&'I.i II Ogólne i  Ident.'!AD34&'I.i II Ogólne i  Ident.'!W38&'I.i II Ogólne i  Ident.'!C34","v":"  "}]
[]
[]
[null,"IV.C. ","DANE NA POTRZEBY USTALENIA M. IN. KRYTERIÓW W OBSZARZE ROZWÓJ PRODUKCJI BYDŁA MIĘSNEGO"]
[]
[]
[]
[null,"1.","W wyniku realizacji operacji wzrost średniej rocznej liczby krów nieprzeznaczonych do produkcji mleka w stadzie wyniesie (w szt.)"]
[null,null,null,null,null,null,null,null,null,null,null,null,null,null,null,null,null,null,null,null,null,null,null,null,null,null,null,null,null,null,null,null,null,null,null,null,null,null,null,null,"(wybierz z listy)"]
[null,null,null,null,null,null,null,null,null,null,null,null,null,null,null,null,null,null,null,null,null,null,null,null,null,null,null,null,null,null,null,null,null,null,null,null,null,null,null,null,"TAK"]
[null,null,null,null,null,null,null,null,null,null,null,null,null,null,null,null,null,null,null,null,null,null,null,null,null,null,null,null,null,null,null,null,null,null,null,null,null,null,null,null,"NIE"]
[null,"2.","W wyniku realizacji operacji średnia roczna liczba krów nieprzeznaczonych do produkcji mleka w stadzie będzie wynosiła (w szt.) 3"]
[]
[]
[]
[null,"3.","Ilość wyprodukowanego żywca w okresie bazowym (w szt.) 3"]
[]
[]
[null,"4.","Ilość sprzedanego żywca w okresie bazowym (w szt.) 3"]
[]
[null,"5.","W dniu złożenia wniosku o przyznanie pomocy podmiot ubiegający się o przyznanie pomocy posiada certyfikat lub świadectwo potwierdzające, że uczestniczy w unijnym systemie jakości, o którym mowa w art. 16 ust. 1 lit. a rozporządzenia nr 1305/2013, lub krajowym systemie jakości, o którym mowa w art. 16 ust. 1 lit. b rozporządzenia nr 1305/2013, w ramach działania „Systemy jakości produktów rolnych i środków spożywczych” objętego PROW 2014-2020, a operacja dotyczy produkcji objętej tym systemem, z wyłączeniem systemu rolnictwa ekologicznego, o którym mowa w pkt 6"]
[null,null,null,null,null,null,null,null,null,null,null,null,null,null,null,null,null,null,null,null,null,null,null,null,null,null,null,null,null,"(wybierz z listy)"]
[]
[]
[]
[null,"6.","W dniu złożenia wniosku o przyznanie pomocy podmiot ubiegający się o przyznanie pomocy posiada certyfikat potwierdzający uczestnictwo w systemie rolnictwa ekologicznego, o którym mowa w rozporządzeniu nr 834/2007, a operacja dotyczy produkcji objętej tym systemem i suma powierzchni gruntów ornych, sadów, łąk trwałych i pastwisk trwałych w gospodarstwie objętych tym systemem stanowi co najmniej 50% sumy powierzchni gruntów ornych, sadów, łąk trwałych i pastwisk trwałych w tym gospodarstwie"]
[null,null,null,null,null,null,null,null,null,null,null,null,null,null,null,null,null,null,null,null,null,null,null,null,null,null,null,null,null,"(wybierz z listy)"]
[]
[]
[]
[null,"7.","Operacja uwzględnia inwestycje służące ochronie środowiska lub zapobieganiu zmianie klimatu"]
[null,null,null,null,null,null,null,null,null,null,null,null,null,null,null,null,null,null,null,null,null,null,null,null,null,null,null,null,null,"(wybierz z listy)"]
[null,null,"3 Należy wypełnić w oparciu o dane określone w Biznesplanie"]

{"sheet":"IV D. Kryteria rent i konkurenc","index":8,"n_rows":157,"n_cols":54,"rows_kept":157,"cut":false,"hidden":false,"merged":[[0,2,0,34],[8,29,8,36],[2,1,2,37],[3,2,6,36],[1,1,1,9],[8,2,8,19],[8,20,8,27],[1,10,1,36],[79,2,79,26],[87,31,87,36],[84,2,85,30],[128,31,128,36],[131,31,131,36],[95,31,95,36],[98,31,98,36],[128,2,129,30],[17,2,19,29],[89,29,89,36],[35,2,35,12],[53,2,53,26],[56,2,56,30],[32,1,34,1],[54,2,54,26],[41,29,41,36],[42,2,43,30],[52,2,52,34],[32,2,34,30],[56,31,56,36],[59,2,59,26],[66,2,66,26],[61,31,61,36],[61,2,62,30],[76,2,77,30],[33,31,33,36],[42,31,42,36],[45,2,45,26],[47,2,47,30],[47,31,47,36],[35,13,35,36],[37,2,37,26],[39,2,40,30],[49,29,49,36],[50,2,51,30],[50,31,50,36],[39,31,39,36],[76,31,76,36],[68,2,69,30],[68,31,68,36],[71,2,71,26],[73,2,74,30],[73,31,73,36],[75,29,75,36],[95,2,96,30],[10,1,11,1],[14,31,14,36],[11,31,11,36],[10,2,12,30],[29,2,31,30],[30,31,30,36],[25,1,28,1],[25,2,28,30],[26,31,26,36],[13,1,14,1],[18,31,18,36],[13,2,15,30],[22,31,22,36],[21,1,23,1],[21,2,23,26],[17,1,19,1],[29,1,31,1],[111,2,112,30],[111,31,111,36],[81,2,82,30],[81,31,81,36],[83,29,83,36],[84,31,84,36],[90,2,90,26],[92,2,93,30],[92,31,92,36],[94,29,94,36],[98,2,99,30],[87,2,88,30],[101,2,102,30],[101,31,101,36],[104,2,105,30],[104,31,104,36],[106,1,106,2],[106,3,106,13],[108,2,109,30],[108,31,108,36],[110,29,110,36],[114,1,114,2],[114,3,114,16],[116,2,117,30],[116,31,116,36],[118,29,118,36],[119,31,119,36],[121,1,121,26],[123,1,123,2],[123,3,123,14],[119,2,119,30],[125,2,126,30],[125,31,125,36],[127,29,127,36],[131,2,132,30],[136,1,136,2],[136,3,136,16],[151,2,152,30],[151,31,151,36],[153,29,153,36],[154,2,154,30],[154,31,154,36],[156,2,156,33],[158,2,175,36],[138,2,139,30],[138,31,138,36],[140,29,140,36],[141,2,142,30],[141,31,141,36],[144,2,145,30],[144,31,144,36],[147,1,147,26],[149,1,149,2],[149,3,149,16]]}
[]
[null,"Podmiot (Imię i Nazwisko/Nazwa):",null,null,null,null,null,null,null,null,{"$f":"'I.i II Ogólne i  Ident.'!U34&'I.i II Ogólne i  Ident.'!W38&'I.i II Ogólne i  Ident.'!AD34&'I.i II Ogólne i  Ident.'!W38&'I.i II Ogólne i  Ident.'!C34","v":"  "}]
[]
[null,"IV.D. ","DANE NA POTRZEBY USTALENIA KRYTERIÓW W OBSZARZE  ZWIĄZANYM Z RACJONALIZACJĄ TECHNOLOGII PRODUKCJI, WPROWADZENIEM INNOWACJI, ZMIANĄ PROFILU PRODUKCJI, ZWIĘKSZENIEM SKALI PRODUKCJI, POPRAWĄ JAKOŚCI PRODUKCJI LUB ZWIĘKSZENIEM WARTOŚCI DODANEJ PRODUKTU"]
[]
[]
[]
[]
[null,null,null,null,null,null,null,null,null,null,null,null,null,null,null,null,null,null,null,null,null,null,null,null,null,null,null,null,null,null,null,null,null,null,null,null,null,null,null,null,null,null,null,null,null,null,null,null,null,null,null,null,null,"(wybierz z listy)"]
[null,null,null,null,null,null,null,null,null,null,null,null,null,null,null,null,null,null,null,null,null,null,null,null,null,null,null,null,null,null,null,null,null,null,null,null,null,null,null,null,null,null,null,null,null,null,null,null,null,null,null,null,null,"TAK"]
[null,"1.","Operacja obejmuje wyłącznie inwestycje dotyczące budowy lub modernizacji budynków inwentarskich lub magazynu paszowego",null,null,null,null,null,null,null,null,null,null,null,null,null,null,null,null,null,null,null,null,null,null,null,null,null,null,null,null,null,null,null,null,null,null,null,null,null,null,null,null,null,null,null,null,null,null,null,null,null,null,"NIE"]
[null,null,null,null,null,null,null,null,null,null,null,null,null,null,null,null,null,null,null,null,null,null,null,null,null,null,null,null,null,null,null,"(wybierz z listy)"]
[]
[null,"2.","Operacja obejmuje  inwestycje, gdzie koszty budowy lub modernizacji budynków inwentarskich lub magazynu paszowego stanowią co najmniej 50 % wszystkich kosztów operacji"]
[null,null,null,null,null,null,null,null,null,null,null,null,null,null,null,null,null,null,null,null,null,null,null,null,null,null,null,null,null,null,null,"(wybierz z listy)"]
[]
[]
[null,"3.","Operacja związana jest ze zwiększeniem skali produkcji rolnej, której realizacja wpłynie również na zwiększenie uczestnictwa w rynku 3"]
[null,null,null,null,null,null,null,null,null,null,null,null,null,null,null,null,null,null,null,null,null,null,null,null,null,null,null,null,null,null,null,"(wybierz z listy)"]
[]
[]
[null,"4.","Operacja związana jest ze zmianą profilu produkcji rolnej, której realizacja wpłynie również na zróżnicowanie produkcji rolnej w gospodarstwie 3"]
[null,null,null,null,null,null,null,null,null,null,null,null,null,null,null,null,null,null,null,null,null,null,null,null,null,null,null,null,null,null,null,"(wybierz z listy)"]
[]
[]
[null,"5.","W dniu złożenia wniosku o przyznanie pomocy podmiot ubiegający się o przyznanie pomocy posiada certyfikat lub świadectwo potwierdzające, że uczestniczy w unijnym systemie jakości, o którym mowa w art. 16 ust. 1 lit. a rozporządzenia nr 1305/2013, lub krajowym systemie jakości, o którym mowa w art. 16 ust. 1 lit. b rozporządzenia nr 1305/2013, w ramach działania „Systemy jakości produktów rolnych i środków spożywczych” objętego PROW 2014-2020, a operacja dotyczy produkcji objętej tym systemem,  z wyłączeniem systemu rolnictwa ekologicznego, o którym mowa w pkt 6"]
[null,null,null,null,null,null,null,null,null,null,null,null,null,null,null,null,null,null,null,null,null,null,null,null,null,null,null,null,null,null,null,"(wybierz z listy)"]
[]
[]
[null,"6.","W dniu złożenia wniosku o przyznanie pomocy podmiot ubiegający się o przyznanie pomocy posiada certyfikat potwierdzający uczestnictwo w systemie rolnictwa ekologicznego, o którym mowa w rozporządzeniu nr 834/2007, a operacja dotyczy produkcji objętej tym systemem i suma powierzchni gruntów ornych, sadów, łąk trwałych i pastwisk trwałych w gospodarstwie objętych tym systemem stanowi co najmniej 50% sumy powierzchni gruntów ornych, sadów, łąk trwałych i pastwisk trwałych w tym gospodarstwie"]
[null,null,null,null,null,null,null,null,null,null,null,null,null,null,null,null,null,null,null,null,null,null,null,null,null,null,null,null,null,null,null,"(wybierz z listy)"]
[]
[null,"7.","Operacja uwzględnia inwestycje służące ochronie środowiska lub zapobieganiu zmianie klimatu"]
[null,null,null,null,null,null,null,null,null,null,null,null,null,null,null,null,null,null,null,null,null,null,null,null,null,null,null,null,null,null,null,"(wybierz z listy)"]
[]
[null,"8.","Kryteria wojewódzkie:"]
[]
[null,"8.1.","dolnośląskie"]
[]
[null,"a) ","operacja dotyczy budowy lub modernizacji budynków inwentarskich dla bydła, owiec lub kóz",null,null,null,null,null,null,null,null,null,null,null,null,null,null,null,null,null,null,null,null,null,null,null,null,null,null,null,null,"(wybierz z listy)"]
[]
[]
[null,"b) ","operacja dotyczy powiększenia powierzchni sadów lub plantacji krzewów owocowych, gatunków owocujących efektywnie dłużej niż 5 lat",null,null,null,null,null,null,null,null,null,null,null,null,null,null,null,null,null,null,null,null,null,null,null,null,null,null,null,null,"(wybierz z listy)"]
[]
[]
[null,"8.2.","kujawsko-pomorskie"]
[]
[null,"a) ","operacja dotyczy budowy lub modernizacji budynków inwentarskich dla świń",null,null,null,null,null,null,null,null,null,null,null,null,null,null,null,null,null,null,null,null,null,null,null,null,null,null,null,null,"(wybierz z listy)"]
[]
[]
[null,"b) ","podmiot ubiegający się o przyznanie pomocy jest członkiem grupy producentów rolnych lub organizacji producentów",null,null,null,null,null,null,null,null,null,null,null,null,null,null,null,null,null,null,null,null,null,null,null,null,null,null,null,null,"(wybierz z listy)"]
[]
[]
[null,"8.3.","lubelskie - nie określono"]
[null,"8.4.","lubuskie"]
[]
[null,"a) ","operacja realizowana jest przez co najmniej 2 rolników",null,null,null,null,null,null,null,null,null,null,null,null,null,null,null,null,null,null,null,null,null,null,null,null,null,null,null,null,"(wybierz z listy)"]
[]
[]
[null,"8.5.","łódzkie"]
[]
[null,"a) ","podmiot ubiegający się o przyznanie pomocy jest członkiem grupy producentów rolnych lub organizacji producentów",null,null,null,null,null,null,null,null,null,null,null,null,null,null,null,null,null,null,null,null,null,null,null,null,null,null,null,null,"(wybierz z listy)"]
[]
[]
[]
[]
[null,"8.6.","małopolskie"]
[]
[null,"a) ","operacja dotyczy budowy lub modernizacji budynków inwentarskich dla trawożernych zwierząt gospodarskich",null,null,null,null,null,null,null,null,null,null,null,null,null,null,null,null,null,null,null,null,null,null,null,null,null,null,null,null,"(wybierz z listy)"]
[]
[]
[null,"8.7.","mazowieckie"]
[]
[null,"a) ","operacja dotyczy budowy obiektów służących do przechowywania produktów rolnych wytwarzanych w gospodarstwie",null,null,null,null,null,null,null,null,null,null,null,null,null,null,null,null,null,null,null,null,null,null,null,null,null,null,null,null,"(wybierz z listy)"]
[]
[]
[null,"b) ","podmiot ubiegający się o przyznanie pomocy jest Beneficjentem działania „Ułatwianie startu młodym rolnikom” PROW 2007-2013 lub operacji typu „Premie dla młodych rolników” PROW 2014-2020",null,null,null,null,null,null,null,null,null,null,null,null,null,null,null,null,null,null,null,null,null,null,null,null,null,null,null,null,"(wybierz z listy)"]
[]
[]
[null,"8.8.","opolskie"]
[]
[null,"a) ","podmiot ubiegający się o przyznanie pomocy jest członkiem grupy producentów rolnych lub organizacji producentów",null,null,null,null,null,null,null,null,null,null,null,null,null,null,null,null,null,null,null,null,null,null,null,null,null,null,null,null,"(wybierz z listy)"]
[]
[]
[null,"b) ","podmiot ubiegający się o przyznanie pomocy jest Beneficjentem działania „Ułatwianie startu młodym rolnikom” PROW 2007-2013 lub opercji typu „Premie dla młodych rolników” PROW 2014-2020",null,null,null,null,null,null,null,null,null,null,null,null,null,null,null,null,null,null,null,null,null,null,null,null,null,null,null,null,"(wybierz z listy)"]
[]
[]
[null,"c) ","operacja dotyczy przygotowania do sprzedaży produktów rolnych wytwarzanych w gospodarstwie",null,null,null,null,null,null,null,null,null,null,null,null,null,null,null,null,null,null,null,null,null,null,null,null,null,null,null,null,"(wybierz z listy)"]
[]
[]
[null,"8.9.","podkarpackie"]
[]
[null,"a) ","podmiot ubiegający się o przyznanie pomocy jest członkiem grupy producentów rolnych lub organizacji producentów",null,null,null,null,null,null,null,null,null,null,null,null,null,null,null,null,null,null,null,null,null,null,null,null,null,null,null,null,"(wybierz z listy)"]
[]
[]
[null,"b) ","operacja ma na celu rozszerzenie produkcji gospodarstwa o profil: zielarstwo lub pszczelarstwo",null,null,null,null,null,null,null,null,null,null,null,null,null,null,null,null,null,null,null,null,null,null,null,null,null,null,null,null,"(wybierz z listy)"]
[]
[]
[null,"c) ","operacja dotyczy budowy obiektów służących do przechowywania produktów rolnych wytwarzanych w gospodarstwie",null,null,null,null,null,null,null,null,null,null,null,null,null,null,null,null,null,null,null,null,null,null,null,null,null,null,null,null,"(wybierz z listy)"]
[]
[]
[null,"d) ","operacja dotyczy przygotowania do sprzedaży produktów rolnych wytwarzanych w gospodarstwie",null,null,null,null,null,null,null,null,null,null,null,null,null,null,null,null,null,null,null,null,null,null,null,null,null,null,null,null,"(wybierz z listy)"]
[]
[]
[null,"e) ","operacja dotyczy budowy lub modernizacji budynków inwentarskich dla bydła, owiec lub kóz",null,null,null,null,null,null,null,null,null,null,null,null,null,null,null,null,null,null,null,null,null,null,null,null,null,null,null,null,"(wybierz z listy)"]
[]
[null,"8.10.",null,"podlaskie",null,null,null,null,null,null,null,null,null,null,null,null,null,null,null,null,null,null,null,null,null,null,null,null,null,null,null,null,null,null,null,null,null,null,null,null,null,null,null,null,null,null,null,null,null,null,null,null,null," "]
[]
[null,"a) ","podmiot ubiegający się o przyznanie pomocy jest członkiem grupy producentów rolnych lub organizacji producentów",null,null,null,null,null,null,null,null,null,null,null,null,null,null,null,null,null,null,null,null,null,null,null,null,null,null,null,null,"(wybierz z listy)"]
[]
[]
[null,"b) ","operacja realizowana w gospodarstwie położonym na obszarze, na którym są podejmowane środki w związku z wystąpieniem choroby zakaźnej zwierząt podlegającej obowiązkowi zwalczania",null,null,null,null,null,null,null,null,null,null,null,null,null,null,null,null,null,null,null,null,null,null,null,null,null,null,null,null,"(wybierz z listy)"]
[]
[]
[null,"8.11.",null,"pomorskie"]
[]
[null,"a) ","operacja dotyczy budowy obiektów służących do przechowywania produktów rolnych wytwarzanych w gospodarstwie",null,null,null,null,null,null,null,null,null,null,null,null,null,null,null,null,null,null,null,null,null,null,null,null,null,null,null,null,"(wybierz z listy)"]
[]
[]
[null,"b) ","operacja realizowana wspólnie przez co najmniej 2 rolników",null,null,null,null,null,null,null,null,null,null,null,null,null,null,null,null,null,null,null,null,null,null,null,null,null,null,null,null,"(wybierz z listy)"]
[]
[null,"8.12. śląskie - nie określono"]
[]
[null,"8.13.",null,"świętokrzyskie"]
[]
[null,"a) ","operacja dotyczy przygotowania do sprzedaży produktów rolnych wytwarzanych w gospodarstwie",null,null,null,null,null,null,null,null,null,null,null,null,null,null,null,null,null,null,null,null,null,null,null,null,null,null,null,null,"(wybierz z listy)"]
[]
[]
[null,"b) ","podmiot ubiegający się o przyznanie pomocy zawarł umowę na dostawę produktów, których dotyczy operacja, zawartą na okres co najmniej jednego roku poprzedzającego dzień złożenia wniosku o przyznanie pomocy, z podmiotami mającymi miejsce zamieszkania albo siedzibę na obszarze tego województwa",null,null,null,null,null,null,null,null,null,null,null,null,null,null,null,null,null,null,null,null,null,null,null,null,null,null,null,null,"(wybierz z listy)"]
[]
[]
[null,"c) ","podmiot ubiegający się o przyznanie pomocy jest członkiem grupy producentów rolnych lub organizacji producentów",null,null,null,null,null,null,null,null,null,null,null,null,null,null,null,null,null,null,null,null,null,null,null,null,null,null,null,null,"(wybierz z listy)"]
[]
[]
[]
[]
[null,"8.14.",null,"warmińsko-mazurskie"]
[]
[null,"a) ","operacja dotyczy budowy obiektów służących do przechowywania produktów rolnych wytwarzanych w gospodarstwie",null,null,null,null,null,null,null,null,null,null,null,null,null,null,null,null,null,null,null,null,null,null,null,null,null,null,null,null,"(wybierz z listy)"]
[]
[]
[null,"b) ","operacja dotyczy przygotowania do sprzedaży produktów rolnych wytwarzanych w gospodarstwie",null,null,null,null,null,null,null,null,null,null,null,null,null,null,null,null,null,null,null,null,null,null,null,null,null,null,null,null,"(wybierz z listy)"]
[]
[]
[null,"c) ","operacja dotyczy budowy lub modernizacji budynków inwentarskich dla owiec, kóz lub koni",null,null,null,null,null,null,null,null,null,null,null,null,null,null,null,null,null,null,null,null,null,null,null,null,null,null,null,null,"(wybierz z listy)"]
[]
[]
[null,"8.15. wielkopolskie - nie określono"]
[]
[null,"8.16.",null,"zachodniopomorskie"]
[]
[null,"a) ","operacja dotyczy budowy obiektów służących do przechowywania produktów rolnych wytwarzanych w gospodarstwie",null,null,null,null,null,null,null,null,null,null,null,null,null,null,null,null,null,null,null,null,null,null,null,null,null,null,null,null,"(wybierz z listy)"]
[]
[]
[null,"b) ","operacja realizowana wspólnie przez co najmniej 2 rolników",null,null,null,null,null,null,null,null,null,null,null,null,null,null,null,null,null,null,null,null,null,null,null,null,null,null,null,null,"(wybierz z listy)"]
[]
[null,"9.","Opis, w jaki sposób operacja wpływa na kryteria wojewódzkie"]

{"sheet":"V.zestawienie RF","index":9,"n_rows":39,"n_cols":14,"rows_kept":39,"cut":false,"hidden":false,"merged":[[38,1,38,13],[36,1,36,13],[37,1,37,13],[29,2,29,13],[20,2,20,13],[4,6,5,6],[8,2,8,13],[35,1,35,13],[33,2,33,7],[32,1,32,7],[28,1,28,7],[27,1,27,7],[4,9,4,13],[0,3,0,11],[7,3,7,5],[14,2,14,13],[2,1,2,13],[3,8,3,13],[24,2,24,13],[10,20,13,20],[3,3,3,5],[4,3,5,3],[4,5,5,5],[4,8,5,8],[13,1,13,7],[10,18,13,18],[4,4,5,4],[3,6,3,7],[10,19,13,19],[23,1,23,7],[19,1,19,7],[4,7,5,7],[3,2,5,2],[3,1,5,1]]}
[null,null,"Podmiot (Imię i Nazwisko/Nazwa):",{"$f":"'I.i II Ogólne i  Ident.'!U34&'I.i II Ogólne i  Ident.'!W38&'I.i II Ogólne i  Ident.'!AD34&'I.i II Ogólne i  Ident.'!W38&'I.i II Ogólne i  Ident.'!C34","v":"  "}]
[]
[null,"V. ZESTAWIENIE RZECZOWO-FINANSOWE OPERACJI"]
[null,"Lp.","Wyszczególnienie zakresu rzeczowego (przedział mocy, wydajność, szerokość robocza, wyposażenie, powierzchnia, itp. ze szczególnym uwzględnieniem cech charakterystycznych wpływających na ocenę kryterium środowisko i klimat)","Wpływ na cel przekrojowy",null,null,"Mierniki rzeczowe",null,"Koszty kwalifikowalne operacji "]
[null,null,null,"Innowacy-jność***","Środowi-sko *** ","Klimat***","Jednostka miary","Ilość\n (liczba)"," Ogółem \n(w zł)"," w tym etapy (w zł)****:"]
[null,null,null,null,null,null,null,null,null,"I","II","III","IV","V"]
[null,1,2,3,4,5,6,7,8,9,10,11,12,13]
[null,"I.","Koszty inwestycyjne nie objęte leasingiem (Ki):"]
[null,"A*"]
[null,"1 ** "]
[null,2,null,null,null,null,null,null,null,null,"  "]
[null,3]
[null,"…"]
[null,"Suma A"]
[null,"B *"]
[null,"1 ** "]
[null,2]
[null,3]
[null,"…"]
[null,"Suma B"]
[null,"… *"]
[null,"1 ** "]
[null,"…"]
[null,"Suma …"]
[null,"II","Koszty inwestycyjne objęte leasingiem (Kl)"]
[null,1]
[null,"…."]
[null,"Suma II"]
[null,"Suma poszczególnych sum zadań inwestycyjnych (Ki+Kl)"]
[null,"III","Koszty ogólne (Ko)"]
[null,1]
[null,"…"]
[null,"Suma Koszty ogólne (Ko) "]
[null,"IV","Suma kosztów kwalifikowalnych operacji (Ki + Kl + Ko)"]
[]
[null,"* Zadanie lub grupa zadań realizowanych w ramach operacji. Zadanie – jedna lub kilka pozycji w zestawieniu rzeczowo-finansowym operacji, obejmujących dostawę, robotę lub usługę mającą być przedmiotem nabycia, mogącą pochodzić od jednego dostawcy lub wykonawcy o ściśle określonym przeznaczeniu lub funkcjonalności, przy czym dostawa może obejmować zarówno jeden przedmiot, jak i całą partię, robota budowlana może składać się z jednej roboty budowlanej bądź kilku robót budowlanych, a usługa może składać się z jednej usługi bądź kilku rodzajów usług. Przy ustalaniu wartości zadania bierze się pod uwagę spełnienie łącznie następujących kryteriów:a) sumowaniu podlegają usługi, dostawy i roboty budowlane tego samego rodzaju i o tym samym przeznaczeniu; b) możliwe jest udzielenie zamówienia w tym samym czasie; c) możliwe jest wykonanie zadania przez jednego wykonawcę."]
[null,"** Zadanie lub dostawa/ robota/ usługa realizowana w ramach zadania"]
[null,"*** Wpisać TAK/NIE"]
[null,"****Operacja obejmująca wyłącznie inwestycje niepolegające na nabyciu rzeczy będących przedmiotem leasingu może być realizowana maksymalnie w 2 etapach."]

{"sheet":"VI.Finans.","index":10,"n_rows":181,"n_cols":48,"rows_kept":181,"cut":false,"hidden":false,"merged":[[182,1,184,37],[174,3,174,36],[170,2,170,37],[175,3,175,27],[179,28,179,31],[176,3,176,27],[175,32,175,36],[175,28,175,31],[179,32,179,36],[177,3,177,36],[134,21,136,36],[135,2,135,11],[45,2,45,14],[46,2,46,14],[46,20,46,24],[143,21,145,36],[116,1,117,36],[180,3,180,27],[179,3,179,27],[178,3,178,27],[173,32,173,36],[180,28,180,36],[176,28,176,36],[178,32,178,36],[178,28,178,31],[147,1,147,36],[33,4,33,14],[28,4,28,14],[22,18,22,19],[31,4,31,14],[30,31,30,36],[24,23,24,24],[17,20,17,22],[27,18,27,19],[36,20,36,24],[26,20,35,24],[34,15,34,17],[33,18,33,19],[31,18,31,19],[33,15,33,17],[35,18,35,19],[35,15,35,17],[31,15,31,17],[34,4,34,14],[27,31,27,36],[1,1,1,9],[1,10,1,36],[7,31,7,36],[14,20,14,22],[14,23,14,24],[7,20,7,24],[9,2,9,36],[7,2,7,14],[7,15,7,19],[14,31,14,36],[12,20,12,22],[12,23,12,24],[13,20,13,22],[13,23,13,24],[14,25,14,30],[12,25,12,30],[12,31,12,36],[13,25,13,30],[32,18,32,19],[27,25,27,30],[15,23,15,24],[15,20,15,22],[19,31,19,36],[21,15,21,17],[22,25,22,30],[24,31,24,36],[24,20,24,22],[21,25,21,30],[23,31,23,36],[22,31,22,36],[15,31,15,36],[23,23,23,24],[21,31,21,36],[19,25,19,30],[19,20,19,22],[15,25,15,30],[17,25,17,30],[18,25,18,30],[17,23,17,24],[16,2,16,36],[15,15,15,17],[25,2,25,36],[22,20,22,22],[21,18,21,19],[20,31,20,36],[23,15,23,17],[23,25,23,30],[22,23,22,24],[26,31,26,36],[31,31,31,36],[26,18,26,19],[24,25,24,30],[39,31,39,36],[23,20,23,22],[38,20,38,22],[43,23,43,24],[34,25,34,30],[29,31,29,36],[28,31,28,36],[32,25,32,30],[34,31,34,36],[33,31,33,36],[38,31,38,36],[36,31,36,36],[43,31,43,36],[33,25,33,30],[35,25,35,30],[35,31,35,36],[36,25,36,30],[39,25,39,30],[38,25,38,30],[43,18,43,19],[38,23,38,24],[43,25,43,30],[43,2,43,14],[44,15,44,17],[59,2,59,3],[64,46,64,47],[60,28,60,36],[63,46,63,47],[62,46,62,47],[50,31,50,36],[52,2,53,36],[63,2,63,27],[59,28,59,36],[58,4,58,27],[34,46,51,47],[48,25,48,30],[46,31,46,36],[45,31,45,36],[47,25,47,30],[45,25,45,30],[44,25,44,30],[19,23,19,24],[18,20,18,22],[19,18,19,19],[18,4,18,14],[17,4,17,14],[20,15,20,17],[19,15,19,17],[18,18,18,19],[18,15,18,17],[13,31,13,36],[18,31,18,36],[17,31,17,36],[21,23,21,24],[20,25,20,30],[20,20,20,22],[87,29,87,36],[88,21,88,28],[87,21,87,28],[77,29,77,36],[87,2,87,20],[76,29,76,36],[79,2,79,20],[78,29,78,36],[85,29,86,36],[76,2,76,20],[17,2,22,3],[20,23,20,24],[21,20,21,22],[22,4,22,14],[19,4,19,14],[20,18,20,19],[17,18,17,19],[18,23,18,24],[88,2,88,20],[94,29,94,36],[91,2,91,20],[90,2,90,20],[91,29,91,36],[88,29,88,36],[92,2,92,20],[92,21,92,28],[90,29,90,36],[89,29,89,36],[89,2,89,20],[92,29,92,36],[91,21,91,28],[89,21,89,28],[101,2,101,11],[95,21,96,28],[90,21,90,28],[94,2,94,28],[98,29,98,36],[95,29,96,36],[95,12,96,20],[98,21,98,28],[98,2,98,11],[3,1,3,36],[11,31,11,36],[10,31,10,36],[11,4,11,14],[6,2,6,25],[8,2,8,14],[7,25,7,30],[8,20,8,24],[8,25,8,30],[11,15,11,17],[10,15,10,17],[8,31,8,36],[10,18,10,19],[8,15,8,19],[10,4,10,14],[11,25,11,30],[10,20,10,22],[10,23,10,24],[11,20,11,22],[11,23,11,24],[10,25,10,30],[79,29,79,36],[85,21,86,28],[74,2,74,20],[74,21,74,28],[74,29,74,36],[78,21,78,28],[84,2,84,36],[78,2,78,20],[72,29,73,36],[77,21,77,28],[79,21,79,28],[75,29,75,36],[85,2,86,20],[77,2,77,20],[52,1,53,1],[75,2,75,20],[62,28,62,36],[62,4,62,27],[58,2,58,3],[60,2,60,3],[72,2,73,20],[63,28,63,36],[55,2,57,27],[71,2,71,36],[68,1,68,36],[69,2,69,29],[59,4,59,27],[64,29,64,36],[62,2,62,3],[60,4,60,27],[55,28,57,36],[58,28,58,36],[29,18,29,19],[61,28,61,36],[67,2,67,28],[67,31,67,36],[32,4,32,14],[29,4,29,14],[29,15,29,17],[43,15,43,17],[30,25,30,30],[34,18,34,19],[39,18,39,19],[46,25,46,30],[50,2,50,28],[38,18,38,19],[44,31,44,36],[47,31,47,36],[47,2,47,24],[44,2,44,14],[39,4,39,14],[45,18,45,19],[45,15,45,17],[44,18,44,19],[44,20,44,22],[39,20,39,22],[26,2,35,3],[26,15,26,17],[27,15,27,17],[35,4,35,14],[27,4,27,14],[76,21,76,28],[75,21,75,28],[32,31,32,36],[28,18,28,19],[65,2,65,28],[65,31,65,36],[61,2,61,3],[61,4,61,27],[48,2,48,24],[28,15,28,17],[72,21,73,28],[28,25,28,30],[32,15,32,17],[31,25,31,30],[30,15,30,17],[26,4,26,14],[29,25,29,30],[30,18,30,19],[30,4,30,14],[46,15,46,19],[38,4,38,14],[45,20,45,24],[43,20,43,22],[36,15,36,17],[38,15,38,17],[39,23,39,24],[39,15,39,17],[36,2,36,14],[10,2,15,3],[12,15,12,17],[11,18,11,19],[12,18,12,19],[24,18,24,19],[17,15,17,17],[15,4,15,14],[22,15,22,17],[12,4,12,14],[24,2,24,14],[14,4,14,14],[23,18,23,19],[13,18,13,19],[20,4,20,14],[14,15,14,17],[15,18,15,19],[13,4,13,14],[14,18,14,19],[13,15,13,17],[23,2,23,14],[21,4,21,14],[172,2,173,27],[149,3,149,29],[149,30,149,35],[154,12,154,20],[157,12,157,20],[127,30,127,35],[122,24,122,31],[144,2,144,11],[24,15,24,17],[173,28,173,31],[95,2,96,11],[107,21,107,28],[101,21,101,28],[101,29,101,36],[107,29,107,36],[112,2,112,20],[114,2,115,36],[172,28,172,36],[26,25,26,30],[44,23,44,24],[48,31,48,36],[36,18,36,19],[38,2,39,3],[37,2,37,36],[107,2,107,11],[104,2,104,11],[104,21,104,28],[104,29,104,36],[132,2,132,11],[127,9,127,14],[127,3,127,8],[127,19,127,26],[129,2,130,11],[119,31,119,36],[129,21,130,36],[112,21,112,28],[110,21,110,28],[110,29,110,36],[137,21,139,36],[138,2,138,11],[123,3,123,29],[123,30,123,35],[125,3,125,29],[125,30,125,35],[110,2,110,11],[112,29,112,36],[151,21,152,36],[153,21,155,36],[156,21,158,36],[151,2,152,20],[154,2,154,3],[157,2,157,3],[157,5,157,10],[154,5,154,10],[122,33,122,34],[122,1,122,2],[122,3,122,21],[129,12,130,20],[140,21,142,36],[141,2,141,11],[131,21,133,36],[160,12,160,20],[163,12,163,20],[159,21,161,36],[162,21,164,36],[165,21,167,36],[160,2,160,3],[163,2,163,3],[166,2,166,3],[166,12,166,20],[160,5,160,10],[163,5,163,10],[166,5,166,10]]}
[]
[null,"Podmiot (Imię i Nazwisko/Nazwa):",null,null,null,null,null,null,null,null,{"$f":"'I.i II Ogólne i  Ident.'!U34&'I.i II Ogólne i  Ident.'!W38&'I.i II Ogólne i  Ident.'!AD34&'I.i II Ogólne i  Ident.'!W38&'I.i II Ogólne i  Ident.'!C34","v":"  "}]
[]
[null,"VI. PLAN FINANSOWY OPERACJI"]
[]
[null,null,null,null,null,null,null,null,null,null,null,null,null,null,null,null,null,null,null,null,null,null,null,null,null,null,null,null,null,null,null,null,null,null,null,null,null,null,null,null,null,null,null,500000]
[null,"1.","Planowane koszty realizacji operacji"]
[null,null,"Nazwa wskaźnika",null,null,null,null,null,null,null,null,null,null,null,null,"Ilość ",null,null,null,null,"Powierzchnia/\nObjętość",null,null,null,null,"Całkowity koszt operacji\n(w zł z VAT)",null,null,null,null,null,"Koszty kwalifikowalne operacji (w zł bez VAT)"]
[null,null,1,null,null,null,null,null,null,null,null,null,null,null,null,2,null,null,null,null,3,null,null,null,null,4,null,null,null,null,null,5]
[null,null,"1.1. Planowane do wybudowania budynki produkcyjne"]
[null,null,"w tym:",null,"obory",null,null,null,null,null,null,null,null,null,null,null,null,null,"szt",null,null,null,null,"m2"]
[null,null,null,null,"chlewnie",null,null,null,null,null,null,null,null,null,null,null,null,null,"szt",null,null,null,null,"m2"]
[null,null,null,null,"inne budynki przeznaczone na inwentarz żywy",null,null,null,null,null,null,null,null,null,null,null,null,null,"szt",null,null,null,null,"m2"]
[null,null,null,null,"szklarnie",null,null,null,null,null,null,null,null,null,null,null,null,null,"szt",null,null,null,null,"m2"]
[null,null,null,null,"magazyny paszowe",null,null,null,null,null,null,null,null,null,null,null,null,null,"szt",null,null,null,null,"m2"]
[null,null,null,null,"pozostałe budynki gospodarcze",null,null,null,null,null,null,null,null,null,null,null,null,null,"szt",null,null,null,null,"m2"]
[null,null,"1.2. Planowane do modernizacji budynki produkcyjne"]
[null,null,"w tym:",null,"obory",null,null,null,null,null,null,null,null,null,null,null,null,null,"szt",null,null,null,null,"m2"]
[null,null,null,null,"chlewnie",null,null,null,null,null,null,null,null,null,null,null,null,null,"szt",null,null,null,null,"m2"]
[null,null,null,null,"inne budynki przeznaczone na inwentarz żywy",null,null,null,null,null,null,null,null,null,null,null,null,null,"szt",null,null,null,null,"m2"]
[null,null,null,null,"szklarnie",null,null,null,null,null,null,null,null,null,null,null,null,null,"szt",null,null,null,null,"m2"]
[null,null,null,null,"magazyny paszowe",null,null,null,null,null,null,null,null,null,null,null,null,null,"szt",null,null,null,null,"m2"]
[null,null,null,null,"pozostałe budynki gospodarcze",null,null,null,null,null,null,null,null,null,null,null,null,null,"szt",null,null,null,null,"m2"]
[null,null,"1.3. Płyty obornikowe",null,null,null,null,null,null,null,null,null,null,null,null,null,null,null,"szt",null,null,null,null,"m2"]
[null,null,"1.4. Zbiorniki na gnojówkę \ni gnojowicę",null,null,null,null,null,null,null,null,null,null,null,null,null,null,null,"szt",null,null,null,null,"m3"]
[null,null,"1.5. Planowane do zakupienia sprzęty ruchome"]
[null,null,"w tym:",null,"ciągniki rolnicze",null,null,null,null,null,null,null,null,null,null,null,null,null,"szt"]
[null,null,null,null,"ładowarki samobieżne",null,null,null,null,null,null,null,null,null,null,null,null,null,"szt"]
[null,null,null,null,"kombajny zbożowe",null,null,null,null,null,null,null,null,null,null,null,null,null,"szt"]
[null,null,null,null,"maszyny do zbioru (z wyłączeniem kombajnów zbożowych) ",null,null,null,null,null,null,null,null,null,null,null,null,null,"szt"]
[null,null,null,null,"przyczepy transportowe",null,null,null,null,null,null,null,null,null,null,null,null,null,"szt"]
[null,null,null,null,"narzędzia i maszyny do uprawy gleby",null,null,null,null,null,null,null,null,null,null,null,null,null,"szt"]
[null,null,null,null,"maszyny do nawożenia",null,null,null,null,null,null,null,null,null,null,null,null,null,"szt"]
[null,null,null,null,"maszyny i urządzenia do siewu i sadzenia",null,null,null,null,null,null,null,null,null,null,null,null,null,"szt"]
[null,null,null,null,"pozostałe maszyny i urządzenia",null,null,null,null,null,null,null,null,null,null,null,null,null,"szt"]
[null,null,null,null,"elementy wyposażenia, elementy maszyn, narzędzi, wyposażenie dodatkowe",null,null,null,null,null,null,null,null,null,null,null,null,null,"szt"]
[null,null,"1.6. Planowany do zakupu sprzęt komputerowy",null,null,null,null,null,null,null,null,null,null,null,null,null,null,null,"szt"]
[null,null,"1.7. Elementy infrastruktury technicznej"]
[null,null,"w tym:",null,"place manewrowe",null,null,null,null,null,null,null,null,null,null,null,null,null,"szt",null,null,null,null,"m2"]
[null,null,null,null,"drogi dojazdowe",null,null,null,null,null,null,null,null,null,null,null,null,null,"szt",null,null,null,null,"mb"]
[]
[]
[]
[null,null,"1.8. Planowane  do założenia sady lub plantacje krzewów owocowych, gatunków owocujących efektywnie dłużej niż 5 lat",null,null,null,null,null,null,null,null,null,null,null,null,null,null,null,"szt",null,null,null,null,"ha"]
[null,null,"1.9. Planowane do wybudowania lub zmodernizowania obiekty służące do przygotowania do sprzedaży produktów rolnych wytwarzanych w gospodarstwie",null,null,null,null,null,null,null,null,null,null,null,null,null,null,null,"szt",null,null,null,null,"m2"]
[null,null,"1.10. Pozostałe inwestycje",null,null,null,null,null,null,null,null,null,null,null,null,null,null,null,"szt"]
[null,null,"1.11. Koszty ogólne"]
[null,null,"1.12. Koszty niekwalifikowalne"]
[null,null,"1.13. Suma kosztów",null,null,null,null,null,null,null,null,null,null,null,null,null,null,null,null,null,null,null,null,null,null,{"$f":"SUM(Z11:AE16)+SUM(Z18:AE25)+SUM(Z27:AE37)+SUM(Z39:AE40)+SUM(Z44:AE47)+Z48","v":0},null,null,null,null,null,{"$f":"SUM(AF11:AK16)+SUM(AF18:AK25)+SUM(AF27:AK37)+SUM(AF39:AK40)+SUM(AF44:AK48)","v":0}]
[]
[null,"2.","Limit pomocy na gospodarstwo i beneficjenta (w zł)",null,null,null,null,null,null,null,null,null,null,null,null,null,null,null,null,null,null,null,null,null,null,null,null,null,null,null,null,"(wybierz z listy)",null,null,null,null,null,null,null,null,null,null,null,null,"(wybierz z listy)"]
[null,null,null,null,null,null,null,null,null,null,null,null,null,null,null,null,null,null,null,null,null,null,null,null,null,null,null,null,null,null,null,null,null,null,null,null,null,null,null,null,null,null,null,null,200000]
[null,"3.","Pomoc uzyskana uprzednio w ramach PROW na lata 2014-2020 w zakresie typu operacji \"MODERNIZACJA GOSPODARSTW ROLNYCH\" w ramach poddziałania \"WSPARCIE INWESTYCJI W GOSPODARSTWACH ROLNYCH\" oraz typu operacji \"RESTRUKTURYZACJA MAŁYCH GOSPODARSTW\" w ramach poddziałania \"POMOC NA ROZPOCZĘCIE DZIAŁALNOŚCI GOSPODARCZEJ NA RZECZ ROZWOJU MAŁYCH GOSPODARSTW\" (kwoty pomocy wypłacone lub określone w umowie o przyznaniu pomocy/decyzji) ",null,null,null,null,null,null,null,null,null,null,null,null,null,null,null,null,null,null,null,null,null,null,null,null,null,null,null,null,null,null,null,null,null,null,null,null,null,null,null,null,null,500000]
[null,null,null,null,null,null,null,null,null,null,null,null,null,null,null,null,null,null,null,null,null,null,null,null,null,null,null,null,null,null,null,null,null,null,null,null,null,null,null,null,null,null,null,null,900000]
[]
[null,null,"Numer umowy/ numer decyzji",null,null,null,null,null,null,null,null,null,null,null,null,null,null,null,null,null,null,null,null,null,null,null,null,null,"Kwota (w zł)"]
[]
[]
[null,null,"3.1."]
[null,null,"3.2."]
[null,null,"3.3."]
[null,null,"3.4."]
[null,null,"3.5."]
[null,null,"3.6. Suma pkt  3.1. - 3.5.:",null,null,null,null,null,null,null,null,null,null,null,null,null,null,null,null,null,null,null,null,null,null,null,null,null,{"$f":"SUM(AC59:AK63)","v":0}]
[]
[null,"4.","Kwota do wykorzystania"]
[]
[null,"5.","Poziom współfinansowania operacji nie więcej niż (procentowo):",null,null,null,null,null,null,null,null,null,null,null,null,null,null,null,null,null,null,null,null,null,null,null,null,null,null,null,null,"(wybierz z listy)",null,null,null,null,null,null,null,"(wybierz z listy)"]
[null,null,null,null,null,null,null,null,null,null,null,null,null,null,null,null,null,null,null,null,null,null,null,null,null,null,null,null,null,null,null,null,null,null,null,null,null,null,null,0.5]
[null,"6.","Podział na etapy planowanej do realizacji operacji:",null,null,null,null,null,null,null,null,null,null,null,null,null,null,null,null,null,null,null,null,null,null,null,null,null,null,null,null,null,null,null,null,null,null,null,null,0.6]
[]
[null,"6.1.","Operacja związana bezpośrednio z budową, modernizacją budynków inwentarskich, w tym ich wyposażaniem, lub adaptacją innych istniejących w gospodarstwie budynków na budynki inwentarskie, w tym ich wyposażaniem, lub budową lub modernizacją magazynów paszowych w gospodarstwach, w których jest prowadzona produkcja zwierzęca, w tym ich wyposażaniem:"]
[null,null,"Etapy4:",null,null,null,null,null,null,null,null,null,null,null,null,null,null,null,null,null,null,"Koszty kwalifikowalne operacji",null,null,null,null,null,null,null,"Wnioskowana kwota pomocy "]
[]
[null,null,"6.1.1    I etap operacji"]
[null,null,"6.1.2.   II etap operacji"]
[null,null,"6.1.3.   III etap operacji"]
[null,null,"6.1.4.   IV etap operacji"]
[null,null,"6.1.5.   V etap operacji"]
[null,null,"6.1.6. Suma pkt. 6.1.1. - 6.1.5.:",null,null,null,null,null,null,null,null,null,null,null,null,null,null,null,null,null,null,{"$f":"SUM(V75:AC79)","v":0},null,null,null,null,null,null,null,{"$f":"SUM(AD75:AK79)","v":0}]
[]
[]
[]
[]
[null,"6.2.","Operacja niezwiązana bezpośrednio z budową, modernizacją budynków inwentarskich, w tym ich wyposażaniem, lub adaptacją innych istniejących w gospodarstwie budynków na budynki inwentarskie, w tym ich wyposażaniem, lub budową lub modernizacją magazynów paszowych w gospodarstwach, w których jest prowadzona produkcja zwierzęca, w tym ich wyposażaniem:"]
[null,null,"Etapy4:",null,null,null,null,null,null,null,null,null,null,null,null,null,null,null,null,null,null,"Koszty kwalifikowalne operacji",null,null,null,null,null,null,null,"Wnioskowana kwota pomocy "]
[]
[null,null,"6.2.1.   I etap operacji"]
[null,null,"6.2.2.   II etap operacji"]
[null,null,"6.2.3.   III etap operacji"]
[null,null,"6.2.4.   IV etap operacji"]
[null,null,"6.2.5.   V etap operacji"]
[null,null,"6.2.6. Suma pkt. 6.2.1. - 6.2.5.:",null,null,null,null,null,null,null,null,null,null,null,null,null,null,null,null,null,null,{"$f":"SUM(V88:AC92)","v":0},null,null,null,null,null,null,null,{"$f":"SUM(AD88:AK92)","v":0}]
[]
[null,"6.3."," Podział na etapy planowanej do realizacji operacji ogółem:"]
[null,null,"Etapy4:",null,null,null,null,null,null,null,null,null,"Planowany termin zakończenia etapu (miesiąc/rok)",null,null,null,null,null,null,null,null,"Koszty kwalifikowalne operacji",null,null,null,null,null,null,null,"Wnioskowana kwota pomocy "]
[]
[]
[null,null,"6.3.1.   I etap operacji",null,null,null,null,null,null,null,null,null,null,null,null,"-",null,null,null,null,null,{"$f":"V75+V88","v":0},null,null,null,null,null,null,null,{"$f":"AD75+AD88","v":0}]
[]
[]
[null,null,"6.3.2.   II etap operacji",null,null,null,null,null,null,null,null,null,null,null,null,"-",null,null,null,null,null,{"$f":"V76+V89","v":0},null,null,null,null,null,null,null,{"$f":"AD76+AD89","v":0}]
[]
[]
[null,null,"6.3.3.   III etap operacji",null,null,null,null,null,null,null,null,null,null,null,null,"-",null,null,null,null,null,{"$f":"V77+V90","v":0},null,null,null,null,null,null,null,{"$f":"AD77+AD90","v":0}]
[]
[]
[null,null,"6.3.4.   IV etap operacji",null,null,null,null,null,null,null,null,null,null,null,null,"-",null,null,null,null,null,{"$f":"V78+V91","v":0},null,null,null,null,null,null,null,{"$f":"AD78+AD91","v":0}]
[]
[]
[null,null,"6.3.5.   V etap operacji",null,null,null,null,null,null,null,null,null,null,null,null,"-",null,null,null,null,null,{"$f":"V79+V92","v":0},null,null,null,null,null,null,null,{"$f":"AD79+AD92","v":0}]
[]
[null,null,"6.3.6. Suma pkt. 6.3.1. - 6.3.5.:",null,null,null,null,null,null,null,null,null,null,null,null,null,null,null,null,null,null,{"$f":"SUM(V99:AC111)","v":0},null,null,null,null,null,null,null,{"$f":"SUM(AD99:AK111)","v":0}]
[]
[]
[]
[null,"4 Operacja obejmująca wyłącznie inwestycje niepolegające na nabyciu rzeczy będących przedmiotem leasingu może być realizowana maksymalnie w 2 etapach. W przypadku operacji obejmującej inwestycje polegające na nabyciu rzeczy będących przedmiotem leasingu pomoc może być wypłacona maksymalnie w 5 etapach z zastrzeżeniem, że wniosek o płatność będzie składany nie częściej niż co 6 miesięcy."]
[]
[]
[null,"7.","Wnioskowana zaliczka",null,null,null,null,null,null,null,null,null,null,null,null,null,null,null,null,null,null,null,null,null,null,null,null,null,null,null,null,"(wybierz z listy)",null,null,null,null,null,null,null,"(wybierz z listy)"]
[null,null,null,null,null,null,null,null,null,null,null,null,null,null,null,null,null,null,null,null,null,null,null,null,null,null,null,null,null,null,null,null,null,null,null,null,null,null,null,"TAK"]
[null,null,null,null,null,null,null,null,null,null,null,null,null,null,null,null,null,null,null,null,null,null,null,null,null,null,null,null,null,null,null,null,null,null,null,null,null,null,null,"NIE"]
[null,"7.1.",null,"Wysokość zaliczki",null,null,null,null,null,null,null,null,null,null,null,null,null,null,null,null,null,null,null,null,null,null,null,null,null,null,null,null,","]
[null,"7.2. ",null,"Wypłata zaliczki:"]
[]
[null,"7.2.1. ",null,"jednorazowo",null,null,null,null,null,null,null,null,null,null,null,null,null,null,null,null,null,null,null,null,null,null,null,null,null,null,"(wybierz z listy)"]
[]
[null,"7.2.2. ",null,"w transzach",null,null,null,null,null,"(wybierz z listy)",null,null,null,null,null,null,null,null,null,"liczba transz:"]
[]
[null,null,"Transze zaliczki",null,null,null,null,null,null,null,null,null,"Termin wypłaty transzy (miesiąc/rok)",null,null,null,null,null,null,null,null,"Wnioskowana kwota transzy"]
[]
[]
[null,null,"7.2.2.1.  I transza zaliczki",null,null,null,null,null,null,null,null,null,null,null,null,"-"]
[]
[]
[null,null,"7.2.2.2.  II transza zaliczki5",null,null,null,null,null,null,null,null,null,null,null,null,"-"]
[]
[]
[null,null,"7.2.2.3.  III transza zaliczki5",null,null,null,null,null,null,null,null,null,null,null,null,"-"]
[]
[]
[null,null,"7.2.2.4.  IV transza zaliczki5",null,null,null,null,null,null,null,null,null,null,null,null,"-"]
[]
[]
[null,null,"7.2.2.5.  V transza zaliczki5",null,null,null,null,null,null,null,null,null,null,null,null,"-"]
[]
[]
[null,"5 Wypłata drugiej i kolejnych transz nastąpi po rozliczeniu we wniosku o płatność, określonej w umowie o przyznaniu pomocy części, nie niższej jednak niż 60%, dotychczas otrzymanej zaliczki."]
[]
[null,"7.3. ",null,"Rozliczenie zaliczki (w przypadku operacji realizowanej w kilku etapach)"]
[]
[null,null,"Rozliczenie zaliczki nastąpi wraz z wnioskiem o płatność dla:",null,null,null,null,null,null,null,null,null,null,null,null,null,null,null,null,null,null,"Kwota rozliczanej zaliczki"]
[]
[null,null,null,null,"-"]
[null,null,"7.3.1. ",null,null,"(wybierz z listy)",null,null,null,null,null,null,"etapu",null,null,null,null,null,null,null,null,null,null,null,null,null,null,null,null,null,null,null,null,null,null,null,null,null,null,null,null,null,null,null,null,null,null,"(wybierz z listy)"]
[null,null,null,null,null,null,null,null,null,null,null,null,null,null,null,null,null,null,null,null,null,null,null,null,null,null,null,null,null,null,null,null,null,null,null,null,null,null,null,null,null,null,null,null,null,null,null,"I"]
[null,null,null,null,null,null,null,null,null,null,null,null,null,null,null,null,null,null,null,null,null,null,null,null,null,null,null,null,null,null,null,null,null,null,null,null,null,null,null,null,null,null,null,null,null,null,null,"II"]
[null,null,"7.3.2. ",null,null,"(wybierz z listy)",null,null,null,null,null,null,"etapu",null,null,null,null,null,null,null,null,null,null,null,null,null,null,null,null,null,null,null,null,null,null,null,null,null,null,null,null,null,null,null,null,null,null,"III"]
[null,null,null,null,null,null,null,null,null,null,null,null,null,null,null,null,null,null,null,null,null,null,null,null,null,null,null,null,null,null,null,null,null,null,null,null,null,null,null,null,null,null,null,null,null,null,null,"IV"]
[null,null,null,null,null,null,null,null,null,null,null,null,null,null,null,null,null,null,null,null,null,null,null,null,null,null,null,null,null,null,null,null,null,null,null,null,null,null,null,null,null,null,null,null,null,null,null,"V"]
[null,null,"7.3.3.",null,null,"(wybierz z listy)",null,null,null,null,null,null,"etapu"]
[]
[]
[null,null,"7.3.4.",null,null,"(wybierz z listy)",null,null,null,null,null,null,"etapu"]
[]
[]
[null,null,"7.3.5.",null,null,"(wybierz z listy)",null,null,null,null,null,null,"etapu"]
[]
[]
[]
[null,"8.","Określenie możliwości realizacji operacji przez podmiot ubiegający się o przyznanie pomocy bez udziału środków publicznych"]
[]
[null,null,"Pytanie",null,null,null,null,null,null,null,null,null,null,null,null,null,null,null,null,null,null,null,null,null,null,null,null,null,"Odpowiedź (należy wstawić znak X we właściwym polu)"]
[null,null,null,null,null,null,null,null,null,null,null,null,null,null,null,null,null,null,null,null,null,null,null,null,null,null,null,null,"TAK",null,null,null,"NIE"]
[null,null,"A.","Określenie poziomu i zakresu, do jakiego podmiot ubiegający się o przyznanie pomocy zrealizowałby inwestycję bez pomocy publicznej:"]
[null,null,"1.","Czy planowana do realizacji operacja powstałaby bez pomocy publicznej w zakresie identycznym jak wskazany we wniosku o przyznanie pomocy, z zastosowaniem tych samych rozwiązań technicznych / technologicznych?"]
[null,null,"2.","Jeżeli w punkcie A1 zaznaczono odpowiedź NIE, należy podać wartość netto nakładów inwestycyjnych, które zostałyby poniesione w przypadku nieotrzymania pomocy (szacunkowo w zł)."]
[null,null,"B.","Określenie czasu realizacji inwestycji przez podmiot ubiegający się o przyznanie pomocy:"]
[null,null,"3.","Czy w przypadku niekorzystania z pomocy finansowej podmiot ubiegający się o przyznanie pomocy rozpocząłby realizację inwestycji w tym samym czasie?"]
[null,null,"4.","Czy w przypadku niekorzystania z pomocy finansowej podmiot ubiegający się o przyznanie pomocy zakończyłby inwestycję w tym samym czasie (tzn. w miesiącu, w którym zaplanowano złożenie wniosku o płatność)?"]
[null,null,"5.","Jeżeli w punkcie B3 lub B4 wskazano odpowiedź NIE, należy podać, o ile dłużej trwałby proces inwestycyjny (od momentu rozpoczęcia inwestycji do momentu złożenia wniosku o płatność) w przypadku niekorzystania z pomocy finansowej przez podmiot ubiegający się o przyznanie pomocy (w miesiącach)."]

{"sheet":"VII.Inf.zał.","index":11,"n_rows":117,"n_cols":35,"rows_kept":117,"cut":false,"hidden":false,"merged":[[113,1,115,2],[113,3,115,26],[113,27,115,29],[107,1,109,2],[107,3,109,26],[110,1,112,2],[95,33,97,35],[98,33,100,35],[101,33,103,35],[104,33,106,35],[107,33,109,35],[110,33,112,35],[113,33,115,35],[62,1,64,2],[68,3,70,26],[68,1,70,2],[71,1,73,2],[65,3,67,26],[110,3,112,26],[110,27,112,29],[107,27,109,29],[104,1,106,2],[104,3,106,26],[104,27,106,29],[95,27,97,29],[98,3,100,26],[98,27,100,29],[101,3,103,26],[17,36,19,41],[14,1,19,2],[17,3,19,26],[17,27,19,29],[29,3,31,26],[32,27,34,29],[20,1,28,2],[29,27,31,29],[32,3,34,26],[29,1,31,2],[14,27,16,29],[33,40,35,63],[36,40,38,63],[39,40,40,63],[53,40,53,63],[54,40,55,63],[42,40,43,63],[45,38,50,66],[51,40,52,63],[1,1,1,9],[2,1,2,37],[1,10,1,35],[9,27,11,29],[12,1,12,35],[13,1,13,35],[38,27,40,29],[5,33,7,35],[50,1,52,2],[14,36,16,41],[8,1,8,35],[9,1,11,2],[9,3,11,26],[32,1,34,2],[14,3,16,26],[38,1,40,2],[90,40,91,63],[66,40,77,63],[78,40,79,63],[80,40,89,63],[56,27,58,29],[44,3,46,26],[63,40,65,63],[59,3,61,26],[59,27,61,29],[50,27,52,29],[56,40,56,63],[57,40,59,63],[60,40,62,63],[62,27,64,29],[117,1,117,35],[21,40,23,63],[24,40,28,63],[29,40,29,63],[30,40,31,63],[32,40,32,63],[71,3,73,26],[50,3,52,26],[86,27,88,29],[77,1,79,2],[62,3,64,26],[101,27,103,29],[65,1,67,2],[74,1,76,2],[80,3,82,26],[80,27,82,29],[89,3,91,26],[77,27,79,29],[83,27,85,29],[86,3,88,26],[89,27,91,29],[68,27,70,29],[89,1,91,2],[74,27,76,29],[3,1,3,35],[5,1,7,2],[5,3,7,26],[5,27,7,29],[5,30,7,32],[56,3,58,26],[56,1,58,2],[41,3,43,26],[35,27,37,29],[44,1,46,2],[35,3,37,26],[35,1,37,2],[47,1,49,2],[47,3,49,26],[47,27,49,29],[44,27,46,29],[38,3,40,26],[41,1,43,2],[92,3,94,26],[92,27,94,29],[20,27,28,29],[20,3,28,26],[116,1,116,35],[4,1,4,35],[53,1,55,2],[53,3,55,26],[59,1,61,2],[53,27,55,29],[41,27,43,29],[92,1,94,2],[83,3,85,26],[86,1,88,2],[65,27,67,29],[71,27,73,29],[74,3,76,26],[77,3,79,26],[83,1,85,2],[80,1,82,2],[95,1,97,2],[95,3,97,26],[98,1,100,2],[101,1,103,2]]}
[]
[null,"Podmiot (Imię i Nazwisko/Nazwa):",null,null,null,null,null,null,null,null,{"$f":"'I.i II Ogólne i  Ident.'!U34&'I.i II Ogólne i  Ident.'!W38&'I.i II Ogólne i  Ident.'!AD34&'I.i II Ogólne i  Ident.'!W38&'I.i II Ogólne i  Ident.'!C34","v":"  "}]
[]
[null,"VII. INFORMACJA O ZAŁĄCZNIKACH"]
[null,"Do wniosku o przyznanie pomocy dołącza się:"]
[null,"Lp.",null,"Nazwa załącznika",null,null,null,null,null,null,null,null,null,null,null,null,null,null,null,null,null,null,null,null,null,null,null,"Liczba załączników",null,null,"Tak",null,null,"ND"]
[]
[]
[null,"Załącznik niezbędny do przeprowadzenia wstępnej weryfikacji spełniania podstawowych wymogów formalnych:"]
[null,"1.",null,"Wniosek o wpis do ewidencji producentów, o której mowa w przepisach o krajowym systemie ewidencji producentów, ewidencji gospodarstw rolnych oraz ewidencji wniosków o przyznanie płatności, jeżeli podmiotowi ubiegającemu się o przyznanie pomocy, jego małżonkowi, spółce cywilnej, której jest wspólnikiem, nie został nadany numer identyfikacyjny - kopia, a w przypadku składania wniosku o wpis tego podmiotu do tej ewidencji łącznie z wnioskiem o przyznanie pomocy – oryginał wniosku"]
[null,null,null,null,null,null,null,null,null,null,null,null,null,null,null,null,null,null,null,null,null,null,null,null,null,null,null,null,null,null,null," ",null,null," "]
[]
[null,"UWAGA: Niedołączenie wymienionego powyżej załącznika przez podmiot ubiegający się o przyznanie pomocy, który nie wypełnił pola 1.1 części II wniosku, zgodnie z przepisem  § 14 ust. 1 rozporządzenia, skutkuje pozostawieniem wniosku bez rozpatrzenia (z zastrzeżeniem § 14 ust. 2 rozporządzenia)."]
[null,"Pozostałe załączniki wymagane do przeprowadzenia weryfikacji wniosku"]
[null,"2.",null,"Biznesplan: \n- na elektronicznym nośniku danych (CD lub DVD), opracowany na formularzu udostępnionym przez ARiMR, oraz"]
[null,null,null,null,null,null,null,null,null,null,null,null,null,null,null,null,null,null,null,null,null,null,null,null,null,null,null,null,null,null,null," ",null,null," "]
[]
[null,null,null,"- wydruk arkusza podsumowującego biznesplan - oryginał"]
[null,null,null,null,null,null,null,null,null,null,null,null,null,null,null,null,null,null,null,null,null,null,null,null,null,null,null,null,null,null,null," ",null,null," "]
[]
[null,"3.",null,"Oświadczenie: \na) właściciela albo współwłaściciela gospodarstwa albo jego części o wyrażeniu zgody na realizację operacji - w przypadku gdy operacja będzie realizowana w gospodarstwie niestanowiącym własności podmiotu ubiegającego się o przyznanie pomocy albo stanowiącym współwłasność tego podmiotu i nie dotyczy wyłącznie nabycia rzeczy ruchomych, które nie wymagają instalacji;\n\nb) współposiadacza gospodarstwa o wyrażeniu zgody na ubieganie się o przyznanie pomocy przez podmiot ubiegający się o przyznanie pomocy - w przypadku gdy operacja będzie realizowana w gospodarstwie stanowiącym przedmiot współposiadania; \n\nc) współposiadacza nieruchomości wchodzącej w skład gospodarstwa o wyrażeniu zgody na ubieganie się o przyznanie pomocy przez podmiot ubiegający się o przyznanie pomocy - w przypadku gdy operacja będzie realizowana w gospodarstwie, w skład którego wchodzi nieruchomość będąca przedmiotem współposiadania;\nsporządzone na formularzu opracowanym i udostępnionym przez ARiMR (Załącznik Nr 1 do Wniosku o przyznanie pomocy) - oryginał",null,null,null,null,null,null,null,null,null,null,null,null,null,null,null,null,null,null,null,null,null,null,null,null,null,null," ",null,null," "]
[]
[]
[]
[]
[]
[]
[]
[]
[null,"4.",null,"Opis zadań wymienionych w zestawieniu rzeczowo-finansowym operacji, sporządzony na formularzu opracowanym i udostępnionym przez ARiMR – w przypadku operacji, w ramach której będzie realizowane co najmniej jedno zadanie niewymagające załączenia do wniosku kosztorysu, o którym mowa w pkt 12 (Załącznik Nr 2 do Wniosku o przyznanie pomocy) - oryginał"]
[null,null,null,null,null,null,null,null,null,null,null,null,null,null,null,null,null,null,null,null,null,null,null,null,null,null,null,null,null,null,null,null,null,null," "]
[]
[null,"5.",null,"Dokument tożsamości - w przypadku gdy podmiot ubiegający się o przyznanie pomocy jest osobą fizyczną albo wspólnikiem spółki cywilnej będącym osobą fizyczną - kopia"]
[null,null,null,null,null,null,null,null,null,null,null,null,null,null,null,null,null,null,null,null,null,null,null,null,null,null,null,null,null,null,null," ",null,null," "]
[]
[null,"6.",null,"Umowa spółki cywilnej - w przypadku gdy operacja będzie realizowana w ramach wykonywania działalności gospodarczej w formie spółki cywilnej – kopia"]
[null,null,null,null,null,null,null,null,null,null,null,null,null,null,null,null,null,null,null,null,null,null,null,null,null,null,null,null,null,null,null," ",null,null," "]
[]
[null,"7.",null,"Uchwała wspólników spółki cywilnej upoważniająca wspólnika tej spółki do złożenia wniosku w imieniu wspólników – w przypadku gdy operacja będzie realizowana w ramach wykonywania działalności gospodarczej w formie spółki cywilnej i wspólnik składa wniosek w imieniu wspólników - kopia ",null,null,null,null,null,null,null,null,null,null,null,null,null,null,null,null,null,null,null,null,null,null,null," "]
[null,null,null,null,null,null,null,null,null,null,null,null,null,null,null,null,null,null,null,null,null,null,null,null,null,null,null,null,null,null,null," ",null,null," "]
[]
[null,"8.",null,"Zaświadczenie wydane przez naczelnika właściwego urzędu skarbowego potwierdzające wpis w ewidencji podatników podatku dochodowego od osób fizycznych z tytułu prowadzenia działów specjalnych produkcji rolnej - w przypadku gdy podmiot ubiegający się o przyznanie pomocy prowadzi produkcję w zakresie działów specjalnych produkcji rolnej - oryginał"]
[]
[]
[null,"9.",null,"Dokument albo dokumenty potwierdzające posiadanie kwalifikacji zawodowych, o których mowa w § 13 ust. 1 pkt 4 rozporządzenia, w przypadku operacji realizowanej przez młodego rolnika - kopia"]
[]
[]
[null,"10.",null,"Dokumenty potwierdzające osiągnięcie przychodu z tytułu prowadzenia działalności rolniczej, o którym mowa w § 2 ust. 3 rozporządzenia - kopia"]
[]
[]
[null,"11.",null,"Umowa, o której mowa w § 3 pkt 2 rozporządzenia  - w przypadku osób wspólnie wnioskujących – kopia"]
[]
[]
[null,"12.",null,"Kosztorys inwestorski – w przypadku gdy operacja obejmuje inwestycję polegającą na budowie, przebudowie lub remoncie połączonym z modernizacją - oryginał"]
[]
[]
[null,"13.",null,"Plan sprzedaży - oryginał lub umowa przedwstępna sprzedaży całej produkcji wytworzonej w gospodarstwie w związku z realizacją operacji – w przypadku gdy w związku z realizacją operacji wzrośnie produkcja - kopia",null,null,null,null,null,null,null,null,null,null,null,null,null,null,null,null,null,null,null,null,null,null,null," "]
[null,null,null,null,null,null,null,null,null,null,null,null,null,null,null,null,null,null,null,null,null,null,null,null,null,null,null,null,null,null,null," ",null,null," "]
[]
[null,"14.",null,"Dokument albo dokumenty potwierdzające posiadanie samoistne lub zależne gospodarstwa, w którym będzie realizowana operacja, przy czym w przypadku posiadania samoistnego nieruchomości, dla której księga wieczysta jest prowadzona w systemie informatycznym, o którym mowa w art. 251 ustawy z dnia 6 lipca 1982 r. o księgach wieczystych i hipotece (Dz. U. z 2016 r. poz. 790, z późn. zm.), jest wystarczające podanie numeru księgi wieczystej - kopia",null,null,null,null,null,null,null,null,null,null,null,null,null,null,null,null,null,null,null,null,null,null,null," "]
[null,null,null,null,null,null,null,null,null,null,null,null,null,null,null,null,null,null,null,null,null,null,null,null,null,null,null,null,null,null,null," ",null,null," "]
[]
[null,"15.",null,"Plan rozmieszczenia na terenie gospodarstwa budynków, budowli i plantacji wieloletnich oraz rzuty budynków służących do produkcji rolnej wraz z rozplanowaniem wewnętrznym – w przypadku operacji niedotyczącej wyłącznie zakupu maszyn lub urządzeń, które będą wykorzystywane wyłącznie poza budynkami i budowlami - oryginał",null,null,null,null,null,null,null,null,null,null,null,null,null,null,null,null,null,null,null,null,null,null,null," "]
[null,null,null,null,null,null,null,null,null,null,null,null,null,null,null,null,null,null,null,null,null,null,null,null,null,null,null,null,null,null,null," ",null,null," "]
[]
[null,"16.",null,"Projekt budowlany – w przypadku gdy operacja obejmuje inwestycję polegającą na budowie, przebudowie lub remoncie połączonym z modernizacją - kopia"]
[]
[]
[null,"17.",null,"Ostateczne pozwolenia, zezwolenia lub inne decyzje, w tym dotyczące ocen oddziaływania na środowisko, których uzyskanie jest wymagane przez odrębne przepisy do realizacji inwestycji objętych operacją, a także inne dokumenty potwierdzające spełnienie określonych w odrębnych przepisach warunków realizacji inwestycji objętych operacją – w przypadku gdy w ramach operacji będą realizowane tego typu inwestycje - kopie",null,null,null,null,null,null,null,null,null,null,null,null,null,null,null,null,null,null,null,null,null,null,null," "]
[null,null,null,null,null,null,null,null,null,null,null,null,null,null,null,null,null,null,null,null,null,null,null,null,null,null,null,null,null,null,null," ",null,null," "]
[]
[null,"18.",null,"Zaświadczenie wystawione przez powiatowego lekarza weterynarii potwierdzające spełnianie wymagań w zakresie higieny i warunków utrzymania zwierząt – w przypadku gdy operacja jest związana z produkcją zwierzęcą - oryginał",null,null,null,null,null,null,null,null,null,null,null,null,null,null,null,null,null,null,null,null,null,null,null," "]
[null,null,null,null,null,null,null,null,null,null,null,null,null,null,null,null,null,null,null,null,null,null,null,null,null,null,null,null,null,null,null," ",null,null," "]
[]
[null,"19.",null,"Dokumentacja dotycząca ewidencji środków trwałych oraz wartości niematerialnych i prawnych – w przypadku podmiotów  ubiegających się o przyznanie pomocy obowiązanych do prowadzenia ewidencji zgodnie z przepisami o podatku dochodowym od osób fizycznych lub przepisami o rachunkowości - kopia",null,null,null,null,null,null,null,null,null,null,null,null,null,null,null,null,null,null,null,null,null,null,null," "]
[null,null,null,null,null,null,null,null,null,null,null,null,null,null,null,null,null,null,null,null,null,null,null,null,null,null,null,null,null,null,null," ",null,null," "]
[]
[null,"20.",null,"Dokumentacja dotycząca wykazu środków trwałych oraz wartości niematerialnych i prawnych – w przypadku podmiotów ubiegających się o przyznanie pomocy obowiązanych do prowadzenia wykazu zgodnie z przepisami o zryczałtowanym podatku dochodowym od niektórych przychodów osiąganych przez osoby fizyczne - kopia",null,null,null,null,null,null,null,null,null,null,null,null,null,null,null,null,null,null,null,null,null,null,null," "]
[null,null,null,null,null,null,null,null,null,null,null,null,null,null,null,null,null,null,null,null,null,null,null,null,null,null,null,null,null,null,null," ",null,null," "]
[]
[null,"21.",null,"Dokumenty potwierdzające uczestnictwo podmiotu ubiegającego się o przyznanie pomocy w unijnym systemie jakości, o którym mowa w art. 16 ust. 1 lit. a rozporządzenia nr 1305/2013 lub krajowym systemie jakości, o którym mowa w art. 16 ust. 1 lit. b tego rozporządzenia w ramach działania „Systemy jakości produktów rolnych i środków spożywczych” objętego PROW 2014-2020 - kopia",null,null,null,null,null,null,null,null,null,null,null,null,null,null,null,null,null,null,null,null,null,null,null," "]
[null,null,null,null,null,null,null,null,null,null,null,null,null,null,null,null,null,null,null,null,null,null,null,null,null,null,null,null,null,null,null," ",null,null," "]
[]
[null,"22.",null,"Dokument potwierdzający członkostwo w grupie producentów rolnych lub organizacji producentów - oryginał",null,null,null,null,null,null,null,null,null,null,null,null,null,null,null,null,null,null,null,null,null,null,null," "]
[null,null,null,null,null,null,null,null,null,null,null,null,null,null,null,null,null,null,null,null,null,null,null,null,null,null,null,null,null,null,null," ",null,null," "]
[]
[null,"23.",null,"Umowa na dostawy produktów, których dotyczy operacja, zawarta na okres co najmniej jednego roku poprzedzającego dzień złożenia wniosku o przyznanie pomocy, z podmiotami mającymi miejsce zamieszkania albo siedzibę na obszarze województwa świętokrzyskiego - w przypadku operacji realizowanych w tym województwie - kopia",null,null,null,null,null,null,null,null,null,null,null,null,null,null,null,null,null,null,null,null,null,null,null," "]
[null,null,null,null,null,null,null,null,null,null,null,null,null,null,null,null,null,null,null,null,null,null,null,null,null,null,null,null,null,null,null," ",null,null," "]
[]
[null,"24.",null,"Informacja o numerze rachunku bankowego podmiotu ubiegającego się o przyznanie pomocy – w przypadku gdy podmiot ten ubiega się o zaliczkę - oryginał",null,null,null,null,null,null,null,null,null,null,null,null,null,null,null,null,null,null,null,null,null,null,null," "]
[null,null,null,null,null,null,null,null,null,null,null,null,null,null,null,null,null,null,null,null,null,null,null,null,null,null,null,null,null,null,null," ",null,null," "]
[]
[null,"25.",null,"Inne dokumenty potwierdzające spełnienie warunków do przyznania pomocy:",null,null,null,null,null,null,null,null,null,null,null,null,null,null,null,null,null,null,null,null,null,null,null," "]
[null,null,null,null,null,null,null,null,null,null,null,null,null,null,null,null,null,null,null,null,null,null,null,null,null,null,null,null,null,null,null," ",null,null," "]
[]
[null,"25.1.",null,null,null,null,null,null,null,null,null,null,null,null,null,null,null,null,null,null,null,null,null,null,null,null,null," ",null,null,null,null,null," "]
[null,null,null,null,null,null,null,null,null,null,null,null,null,null,null,null,null,null,null,null,null,null,null,null,null,null,null,null,null,null,null," "]
[]
[null,"25.2",null,null,null,null,null,null,null,null,null,null,null,null,null,null,null,null,null,null,null,null,null,null,null,null,null," ",null,null,null,null,null," "]
[null,null,null,null,null,null,null,null,null,null,null,null,null,null,null,null,null,null,null,null,null,null,null,null,null,null,null,null,null,null,null," "]
[]
[null,"25.3",null,null,null,null,null,null,null,null,null,null,null,null,null,null,null,null,null,null,null,null,null,null,null,null,null," ",null,null,null,null,null," "]
[null,null,null,null,null,null,null,null,null,null,null,null,null,null,null,null,null,null,null,null,null,null,null,null,null,null,null,null,null,null,null," "]
[]
[null,"25.4",null,null,null,null,null,null,null,null,null,null,null,null,null,null,null,null,null,null,null,null,null,null,null,null,null," ",null,null,null,null,null," "]
[null,null,null,null,null,null,null,null,null,null,null,null,null,null,null,null,null,null,null,null,null,null,null,null,null,null,null,null,null,null,null," "]
[]
[null,"25.5",null,null,null,null,null,null,null,null,null,null,null,null,null,null,null,null,null,null,null,null,null,null,null,null,null," ",null,null,null,null,null," "]
[null,null,null,null,null,null,null,null,null,null,null,null,null,null,null,null,null,null,null,null,null,null,null,null,null,null,null,null,null,null,null," "]
[]
[null,"25.6",null,null,null,null,null,null,null,null,null,null,null,null,null,null,null,null,null,null,null,null,null,null,null,null,null," ",null,null,null,null,null," "]
[null,null,null,null,null,null,null,null,null,null,null,null,null,null,null,null,null,null,null,null,null,null,null,null,null,null,null,null,null,null,null," "]
[]
[null,"25.7",null,null,null,null,null,null,null,null,null,null,null,null,null,null,null,null,null,null,null,null,null,null,null,null,null," ",null,null,null,null,null," "]
[null,null,null,null,null,null,null,null,null,null,null,null,null,null,null,null,null,null,null,null,null,null,null,null,null,null,null,null,null,null,null," "]
[]
[null,"UWAGA: \nKopie dokumentów dołącza się w formie kopii potwierdzonych za zgodnosć z oryginałem przez pracownika ARiMR lub podmiot, który wydał dokument, albo poświadczonych za zgodność z oryginałem przez notariusza lub przez występującego w sprawie pełnomocnika będącego radcą prawnym lub adwokatem, z tym że kopie, o których mowa w pkt 11, 19 i 20 mogą być  potwierdzone przez podmiot ubiegający się o przyznanie pomocy lub jedną z osób wspólnie wnioskujących."]

{"sheet":"VII.Inf.zał. NN","index":12,"n_rows":28,"n_cols":35,"rows_kept":28,"cut":false,"hidden":false,"merged":[[1,1,1,9],[1,10,1,35],[2,1,2,37],[3,1,5,29],[6,1,8,2],[6,3,8,26],[6,27,8,29],[9,1,11,2],[9,3,11,26],[9,27,11,29],[12,1,14,2],[12,3,14,26],[12,27,14,29],[15,1,17,2],[15,3,17,26],[15,27,17,29],[18,1,20,2],[18,3,20,26],[18,27,20,29],[30,1,30,35],[24,1,26,2],[24,3,26,26],[24,27,26,29],[21,1,23,2],[21,3,23,26],[21,27,23,29],[27,1,29,2],[27,3,29,26],[27,27,29,29]]}
[]
[null,"Podmiot (Imię i Nazwisko/Nazwa):",null,null,null,null,null,null,null,null,{"$f":"'I.i II Ogólne i  Ident.'!U34&'I.i II Ogólne i  Ident.'!W38&'I.i II Ogólne i  Ident.'!AD34&'I.i II Ogólne i  Ident.'!W38&'I.i II Ogólne i  Ident.'!C34","v":"  "}]
[]
[null,"Dodatkowe załączniki wymagane do przeprowadzenia weryfikacji wniosku o przyznanie pomocy następcy prawnego beneficjenta albo nabywcy gospodarstwa rolnego lub jego części"]
[null,null,null,null,null,null,null,null,null,null,null,null,null,null,null,null,null,null,null,null,null,null,null,null,null,null,null,null,null,null,null," ",null,null," "]
[]
[null,"26.",null,"Dodatkowe dane dotyczące wniosku  o przyznanie pomocy następcy prawnego beneficjenta albo nabywcy gospodarstwa rolnego lub jego części - sporządzone na formularzu opracowanym i udostępnionym przez ARiMR (Załącznik Nr 3 do Wniosku o przyznanie pomocy) - oryginał",null,null,null,null,null,null,null,null,null,null,null,null,null,null,null,null,null,null,null,null,null,null,null," "]
[null,null,null,null,null,null,null,null,null,null,null,null,null,null,null,null,null,null,null,null,null,null,null,null,null,null,null,null,null,null,null," ",null,null," "]
[]
[null,"27.",null,"Uzasadnienie wniosku następcy prawnego/nabywcy - oryginał",null,null,null,null,null,null,null,null,null,null,null,null,null,null,null,null,null,null,null,null,null,null,null," "]
[null,null,null,null,null,null,null,null,null,null,null,null,null,null,null,null,null,null,null,null,null,null,null,null,null,null,null,null,null,null,null," ",null,null," "]
[]
[null,"28.",null,"Dokument potwierdzający fakt zaistnienia następstwa prawnego -   kopia ",null,null,null,null,null,null,null,null,null,null,null,null,null,null,null,null,null,null,null,null,null,null,null," "]
[null,null,null,null,null,null,null,null,null,null,null,null,null,null,null,null,null,null,null,null,null,null,null,null,null,null,null,null,null,null,null," ",null,null," "]
[]
[null,"29.",null,"Dokument potwierdzający fakt nabycia gospodarstwa lub jego części -  kopia ",null,null,null,null,null,null,null,null,null,null,null,null,null,null,null,null,null,null,null,null,null,null,null," "]
[null,null,null,null,null,null,null,null,null,null,null,null,null,null,null,null,null,null,null,null,null,null,null,null,null,null,null,null,null,null,null," ",null,null," "]
[]
[null,"30.",null,"Oświadczenie następcy prawnego o jego wstąpieniu w prawa i obowiązki beneficjenta wynikające z umowy o przyznaniu pomocy - sporządzone na formularzu udostępnionym przez ARiMR (Załącznik nr 4 do Wniosku o przyznanie pomocy) - oryginał",null,null,null,null,null,null,null,null,null,null,null,null,null,null,null,null,null,null,null,null,null,null,null," "]
[null,null,null,null,null,null,null,null,null,null,null,null,null,null,null,null,null,null,null,null,null,null,null,null,null,null,null,null,null,null,null," ",null,null," "]
[]
[null,"31.",null,"Oświadczenie osoby wspólnie wnioskującej o wyrażeniu zgody na przyznanie pomocy następcy prawnemu jednego z beneficjentów albo nabywcy gospodarstwa lub jego części, sporządzone na formularzu udostępnionym przez ARiMR - (Załącznik nr 5 do Wniosku o przyznanie pomocy) - oryginał",null,null,null,null,null,null,null,null,null,null,null,null,null,null,null,null,null,null,null,null,null,null,null," "]
[null,null,null,null,null,null,null,null,null,null,null,null,null,null,null,null,null,null,null,null,null,null,null,null,null,null,null,null,null,null,null," ",null,null," "]
[]
[null,"32.",null,"Umowa przejęcia długu - w przypadku, gdy podmiotem ubiegającym się o przyznanie pomocy jest nabywca gospodarstwa beneficjenta  – kopia ",null,null,null,null,null,null,null,null,null,null,null,null,null,null,null,null,null,null,null,null,null,null,null," "]
[null,null,null,null,null,null,null,null,null,null,null,null,null,null,null,null,null,null,null,null,null,null,null,null,null,null,null,null,null,null,null," ",null,null," "]
[]
[null,"33.",null,"Umowa cesji wierzytelności - w przypadku, gdy podmiotem ubiegającym się o przyznanie pomocy jest nabywca gospodarstwa beneficjenta lub jego części i nie zostały zrealizowane przez ARiMR wszystkie płatności na rzecz beneficjenta – kopia"]

{"sheet":"VIII. Ośw. Podmiotu","index":13,"n_rows":39,"n_cols":34,"rows_kept":39,"cut":false,"hidden":false,"merged":[[1,1,1,9],[1,10,1,35],[13,2,14,5],[11,24,11,32],[9,33,9,34],[9,29,9,30],[11,2,11,20],[10,2,10,27],[7,2,8,5],[2,3,2,26],[3,2,3,34],[4,1,4,32],[7,6,8,35],[17,2,17,35],[18,2,18,35],[16,2,16,35],[5,33,5,34],[5,24,5,32],[5,2,5,21],[13,6,14,35],[20,2,20,35],[24,2,24,35],[21,2,21,35],[22,2,22,35],[19,2,19,35],[32,2,32,35],[29,3,29,35],[30,3,30,35],[31,2,31,35],[23,2,23,35],[39,3,39,35],[36,22,37,35],[38,2,38,12],[38,22,38,35],[36,1,37,14],[25,2,25,35],[26,2,26,35],[27,2,27,35],[34,1,34,35]]}
[]
[null,"Podmiot (Imię i Nazwisko/Nazwa):",null,null,null,null,null,null,null,null,{"$f":"'I.i II Ogólne i  Ident.'!U34&'I.i II Ogólne i  Ident.'!W38&'I.i II Ogólne i  Ident.'!AD34&'I.i II Ogólne i  Ident.'!W38&'I.i II Ogólne i  Ident.'!C34","v":"  "}]
[]
[null,null,"VIII. OŚWIADCZENIE PODMIOTU UBIEGAJĄCEGO SIĘ O PRZYZNANIE POMOCY"]
[]
[null,"1a.","Wnioskuję o przyznanie pomocy finansowej w wysokości:",null,null,null,null,null,null,null,null,null,null,null,null,null,null,null,null,null,null,null,null,null,null,null,null,null,null,null,null,null,null,"zł"]
[]
[null,null,"słownie zł.:"]
[]
[]
[]
[null,"1b.","Wnioskuję o wypłatę zaliczki w wysokości 6:",null,null,null,null,null,null,null,null,null,null,null,null,null,null,null,null,null,null,null,null,null," ",null,null,null,null,null,null,null,null,"zł"]
[]
[null,null,"słownie zł.:"]
[]
[]
[null,"2.","Oświadczam, że znane mi są zasady ubiegania się i przyznawania pomocy określone w przepisach rozporządzenia Ministra Rolnictwa i Rozwoju Wsi z dnia 21 sierpnia 2015 r. w sprawie szczegółowych warunków i trybu przyznawania oraz wypłaty pomocy finansowej na operacje typu „Modernizacja gospodarstw rolnych” w ramach poddziałania „Wsparcie inwestycji w gospodarstwach rolnych” objętego Programem Rozwoju Obszarów Wiejskich na lata 2014–2020 (Dz. U. poz 1371 oraz z 2016 r. poz. 399 i 1617) oraz zasady wypełniania wniosku zawarte w Instrukcji wypełniania wniosku o przyznanie pomocy, w tym zasady refundacji kosztów kwalifikowalnych określonych we wniosku, poniesionych w związku z realizacją operacji oraz zasady udzielania zaliczek.        "]
[null,"3.","Oświadczam, że koszty kwalifikowalne w niniejszym wniosku nie będą finansowane z innych środków publicznych."]
[null,"4.","Oświadczam, że realizacja operacji nie jest możliwa bez udziału środków publicznych."]
[null,"5.","Oświadczam, że informacje zawarte we wniosku oraz jego załącznikach są prawdziwe i zgodne ze stanem prawnym i faktycznym; znane mi są skutki odpowiedzialności karnej wynikającej z art. 297 § 1 ustawy z dnia 6 czerwca 1997 r. Kodeks karny (Dz. U. z 2016 r. poz 1137 z późn.zm.)."]
[null,"6.","Oświadczam, że nie podlegam zakazowi dostępu do środków publicznych, o których mowa w art. 5 ust. 3 pkt 4 ustawy z dnia 27 sierpnia 2009 r. o finansach publicznych (Dz. U. z 2016 r. poz 1870 z późn. zm.), na podstawie prawomocnego orzeczenia sądu. Jednocześnie zobowiązuję się do niezwłocznego poinformowania Agencji o zakazie dostępu do środków publicznych,o których mowa w art. 5 ust. 3 pkt 4 ustawy z dnia 27 sierpnia 2009 r. o finansach publicznych, na podstawie prawomocnego orzeczenia sądu, orzeczonym w stosunku do mnie po złożeniu wniosku o przyznanie pomocy."]
[null,"7.","Oświadczam, że znane mi są regulacje art. 59 ust. 7 rozporządzenia Parlamentu Europejskiego i Rady (UE) nr  1306/2013 z dnia 17 grudnia 2013 r. w sprawie finansowania wspólnej polityki rolnej, zarządzania nią i monitorowania jej oraz uchylającego rozporządzenia Rady (EWG) nr 352/78, (WE) nr 165/94, (WE) nr 2799/98, (WE) nr 814/2000, (WE) nr 1290/2005 i (WE) nr 485/2008 (Dz. Urz. UE L 347 z 20.12.2013, str. 549, z późn. zm.) stanowiące, iż wniosek o przyznanie pomocy jest odrzucany, jeżeli Podmiot ubiegający się o przyznanie pomocy lub jego przedstawiciel uniemożliwia przeprowadzenie kontroli na miejscu, z wyjątkiem przypadków siły wyższej lub nadzwyczajnych okoliczności.\n"]
[null,"8.","Oświadczam, że znane mi są regulacje dotyczące prowadzenia oddzielnego systemu rachunkowości albo korzystania z odpowiedniego kodu rachunkowego, o których mowa w art. 66 ust. 1 lit. c pkt i rozporządzenia Parlamentu Europejskiego i Rady (UE) nr 1305/2013 z dnia 17 grudnia 2013 r. w sprawie wsparcia rozwoju obszarów wiejskich przez Europejski Fundusz Rolny na rzecz Rozwoju Obszarów Wiejskich (EFRROW) i uchylającego rozporządzenie Rady (WE) nr 1698/2005 (Dz. Urz. UE L 347 z 20.12.2013, str. 487, z późn. zm.), dla wszystkich transakcji związanych z realizacją operacji, w ramach prowadzonych ksiąg rachunkowych albo przez prowadzenie zestawienia faktur lub równoważnych dokumentów księgowych na formularzu udostępnionym przez ARiMR, gdy beneficjent nie jest zobowiązany do prowadzenia ksiąg rachunkowych na podstawie przepisów odrębnych."]
[null,"9.","Jestem świadomy, że zgodnie z art. 35 ust. 5 oraz ust. 6 rozporządzenia delegowanego Komisji (UE) nr 640/2014 z dnia 11 marca 2014 r. uzupełniającego  rozporządzenie  Parlamentu  Europejskiego i  Rady  (UE) nr  1306/2013 w  odniesieniu  do  zintegrowanego  systemu  zarządzania i  kontroli  oraz  warunków  odmowy lub  wycofania  płatności  oraz  do  kar  administracyjnych  mających  zastosowanie  do  płatności bezpośrednich, wsparcia rozwoju obszarów wiejskich oraz zasady wzajemnej zgodności (Dz. Urz. UE L 181 z 20.06.2014, str. 48, z późn. zm.) w przypadku ustalenia poważnej niezgodności/przedstawienia fałszywych dowodów w celu otrzymania wsparcia lub w wyniku zaniedbania nie dostarczenia niezbędnych informacji, wsparcia odmawia się lub cofa się je w całości oraz że zostanę wykluczony z takiego samego środka lub rodzaju operacji w roku kalendarzowym, w którym stwierdzono niezgodność, oraz w kolejnym roku kalendarzowym."]
[null,"10.","Przyjmuję do wiadomości, iż Prezes ARiMR poda do publicznej wiadomości, na stronie internetowej administrowanej przez ARiMR, informację o kolejności przysługiwania pomocy, ustalonej przy zastosowaniu kryteriów oceny operacji. "]
[null,"11.","Przyjmuję do wiadomości, że zaliczka wykorzystana niezgodnie z przeznaczeniem, pobranana należnie lub w nadmiernej wysokości podlega zwrotow przez Beneficjenta wraz z odsetkami w wysokości określonej jak dla zaległości podatkowych,  liczonymi od dnia przekazania zaliczki, w terminie 14 dni od dnia doręczenia wezwania do jej zwrotu zgodnie z Ustawą z dnia 27 maja 2015 r. o finansowaniu wspólnej polityki rolnej (Dz. U. poz 1130 oraz z 2016 r. poz. 848 i poz. 1948 oraz z 2017 r. poz. 624) 6."]
[null,"12.","Przyjmuję do wiadomości, że zwrotowi, o którym mowa w pkt 11 podlega odpowiednio ta część zaliczki, która została wykorzystana niezgodnie z przeznaczeniem albo pobrana nienależnie lub w nadmiernej wysokości 6."]
[null,"13.","Przyjmuję do wiadomości, że zaliczki w danym roku kalendarzowym będą wypłacane jedynie do wysokości środków finansowych, ustalonych na zabezpieczenie płatności w ramach PROW na lata 2014-2020 w danym roku budżetowym. Brak środków finansowych w danym roku budżetowym nie może stanowić podstawy do roszczeń z tytułu przekroczenia terminu rozpatrywania wniosku lub odmowy wypłaty zaliczki6."]
[null,"14.","Przyjmuję do wiadomości, iż:"]
[null,null,"a)","zebrane dane osobowe będą przetwarzane przez Agencję Restrukturyzacji i Modernizacji Rolnictwa z siedzibą w Warszawie: \n00-175 Warszawa Al. Jana Pawła II 70, zgodnie z przepisami ustawy z dnia 29 sierpnia 1997 r. o ochronie danych osobowych (Dz.U. z 2016 r. poz. 922) w celu przyznania pomocy finansowej i płatności w ramach poddziałania „Wsparcie inwestycji w gospodarstwach rolnych” objętego Programem Rozwoju Obszarów Wiejskich na lata 2014–2020 na operacje typu „Modernizacja gospodarstw rolnych”;"]
[null,null,"b)","przysługuje mi, jako osobie fizycznej, prawo wglądu do moich danych osobowych oraz do ich poprawiania."]
[null,"15.","Przyjmuję do wiadomości, że dane beneficjenta mogą być przetwarzane przez organy audytowe i dochodzeniowe Unii Europejskiej i państw członkowskich dla zabezpieczenia interesów finansowych Unii Europejskiej."]
[null,"16.","Przyjmuję do wiadomości, że dane beneficjenta oraz kwota wypłaty pomocy z publicznych środków finansowych, w tym wypłacona kwota z tytułu udzielonej pomocy w ramach poddziałania „Wsparcie inwestycji w gospodarstwach rolnych” objętego Programem Rozwoju Obszarów Wiejskich na lata 2014–2020 na operacje typu „Modernizacja gospodarstw rolnych” będzie publikowana na stronie internetowej MRiRW."]
[]
[null,"6 dotyczy podmiotów ubiegających się o przyznanie pomocy, którzy ubiegają się również o zaliczkę"]
[]
[null," ",null,null,null,null,null,null,null,null,null,null,null,null,null,null,null,null,null,null,null,null," "]
[]
[null,null,"(miejscowość i data)",null,null,null,null,null,null,null,null,null,null,null,null,null,null,null,null,null,null,null,"(podpis podmiotu ubiegającego się o przyznanie pomocy/ osoby reprezentującej ten podmiot/ pełnomocnika tego podmiotu)"]

{"sheet":"Zał 1. Oświadczenia współ 3","index":14,"n_rows":44,"n_cols":33,"rows_kept":44,"cut":false,"hidden":false,"merged":[[0,32,0,36],[1,1,1,28],[1,32,1,36],[2,32,2,36],[3,1,6,18],[3,33,3,35],[4,33,4,35],[26,1,26,36],[7,2,7,18],[8,3,8,35],[10,3,11,36],[13,3,14,36],[16,3,17,36],[19,1,19,36],[20,1,20,36],[21,1,21,36],[22,1,22,36],[23,1,24,36],[25,2,25,36],[27,1,27,36],[28,1,28,36],[30,1,31,36],[33,1,33,36],[35,1,37,16],[35,20,37,36],[38,2,38,16],[38,20,38,36],[40,20,40,36],[41,20,41,36],[43,0,43,37]]}
[]
[null,"Załącznik Nr 1 do wniosku o przyznanie pomocy ",null,null,null,null,null,null,null,null,null,null,null,null,null,null,null,null,null,null,null,null,null,null,null,null,null,null,null,null,null,null,"W-1.1_4.1.3"]
[]
[]
[]
[]
[]
[null,null,"(Imię i Nazwisko, Adres, seria i numer dokumentu tożsamości,PESEL, NIP*/ Nazwa, Adres siedziby, NIP, REGON)"]
[null,null,null,"Oświadczenie"]
[]
[null,null,null,"Właściciela albo współwłaściciela gospodarstwa albo jego części o wyrażeniu zgody na realizację operacji,  w przypadku gdy operacja będzie realizowana w gospodarstwie niestanowiącym własności podmiotu ubiegającego się o przyznanie pomocy albo stanowiącym współwłasność tego podmiotu i nie dotyczy wyłącznie nabycia rzeczy ruchomych, które nie wymagają instalacji"]
[]
[]
[null,null,null,"Współposiadacza gospodarstwa o wyrażeniu zgody na ubieganie się o przyznanie pomocy przez podmiot ubiegający się o przyznanie pomocy, w przypadku gdy operacja będzie realizowana w gospodarstwie stanowiącym przedmiot współposiadania"]
[]
[]
[null,null,null,"Współposiadacza nieruchomości wchodzącej w skład gospodarstwa o wyrażeniu zgody na ubieganie się o przyznanie pomocy przez podmiot ubiegający się o przyznanie pomocy, w przypadku gdy operacja będzie realizowana w gospodarstwie, w skład którego wchodzi działka ewidencyjna będąca przedmiotem współposiadania"]
[]
[]
[null,"Oświadczam, iż wyrażam zgodę na ubieganie się o przyznanie pomocy/ realizację operacji przez:"]
[]
[null,"(Imię i Nazwisko podmiotu ubiegającego się o przyznanie pomocy, Adres,seria i numer dokumentu tożsamości/ Nazwa podmiotu, Adres siedziby, NIP, REGON)"]
[null,"w ramach poddziałania „Wsparcie inwestycji w gospodarstwach rolnych” PROW 2014-2020, typ operacji „Modernizacja gospodarstw rolnych”, celem realizacji operacji polegającej na:"]
[]
[]
[null,null,"(zakres operacji)"]
[null,"w gospodarstwie zlokalizowanym w:"]
[]
[null,"(adres gospodarstwa i nr działki/działek)"]
[]
[null,"Jednocześnie oświadczam, że jestem świadomy, iż pomoc udzielona współposiadaczowi gospodarstwa wpływa na zmniejszenie ogólnego limitu pomocy na jedno gospodarstwo i jednego beneficjenta, a pomoc udzielona współposiadaczowi nieruchomości  wchodzącej w skład gospodarstwa może mieć wpływ na zmniejszenie tego limitu. Jednocześnie zobowiązuję się do umożliwienia wskazanemu wyżej podmiotowi ubiegającemu się o przyznanie pomocy realizacji wieloletnich zobowiązań związanych z operacją."]
[]
[]
[null,"Przyjmuję do wiadomości, iż: \na) zebrane dane osobowe będą przetwarzane przez Agencję Restrukturyzacji i Modernizacji Rolnictwa z siedzibą w Warszawie: 00-175 Warszawa, Al. Jana Pawła II 70, zgodnie z przepisami ustawy z dnia 29 sierpnia 1997  r. o ochronie danych osobowych (Dz. U. z 2016 r. poz. 922) w celu przyznania pomocy finansowej i płatności  w ramach poddziałania „Wsparcie inwestycji w gospodarstwach rolnych” objętego Programem Rozwoju Obszarów Wiejskich na lata 2014–2020 na operacje typu „Modernizacja gospodarstw rolnych”;\nb) przysługuje mi, jako osobie fizycznej, prawo wglądu do moich danych osobowych oraz do ich poprawiania."]
[]
[]
[]
[]
[null,null,"(miejscowość i data)",null,null,null,null,null,null,null,null,null,null,null,null,null,null,null,null,null,"(podpis właściciela albo współposiadacza/ osoby reprezentującej właściciela albo współposiadacza/ pełnomocnika właściciela albo współposiadacza)"]
[]
[]
[null,null,null,null,null,null,null,null,null,null,null,null,null,null,null,null,null,null,null,null,"(podpis podmiotu ubiegającego się o przyznanie pomocy/ osoby reprezentującej ten podmiot/ pełnomocnika tego podmiotu)"]
[]
["*  Obowiązek podawania numeru NIP nie dotyczy osób fizycznych objętych rejestrem PESEL, nieprowadzących działalności gospodarczej lub niebędących zarejestrowanymi podatnikami podatku od towarów i usług"]

{"sheet":"Zał. 2 Opis Zadań","index":15,"n_rows":28,"n_cols":11,"rows_kept":28,"cut":false,"hidden":false,"merged":[[9,7,9,9],[29,2,29,10],[30,3,30,4],[30,5,30,6],[25,3,26,4],[25,8,26,10],[27,3,27,4],[27,8,28,10],[21,7,21,9],[20,7,20,9],[1,2,1,5],[3,2,4,10],[6,2,8,2],[6,3,8,3],[6,7,8,9],[6,10,8,10],[10,7,10,9],[19,7,19,9],[18,7,18,9],[17,7,17,9],[11,7,11,9],[22,4,22,6],[18,4,18,6],[21,4,21,6],[20,4,20,6],[16,7,16,9],[23,7,23,9],[14,7,14,9],[13,7,13,9],[12,7,12,9],[22,7,22,9],[15,7,15,9],[19,4,19,6],[12,4,12,6],[10,4,10,6],[9,4,9,6],[6,4,8,6],[17,4,17,6],[16,4,16,6],[15,4,15,6],[14,4,14,6],[13,4,13,6],[11,4,11,6]]}
[]
[null,null,"Załącznik Nr 2 do wniosku o przyznanie pomocy ",null,null,null,null,null,null,null,"W-1.2_4.1.3"]
[null,null,null," ","                                "]
[null,null,"Opis zadań wymienionych w zestawieniu rzeczowo-finansowym operacji"]
[]
[]
[null,null,"Lp.","Pozycja zestawienia rzeczowo-finansowego operacji","Żródło ceny na podstawie ktorej zbadana została racjonalność kosztów",null,null,"\nMarka, typ lub rodzaj (jeśli dotyczy), itp. na podstawie ktorej ustalono wartość netto danej pozycji",null,null,"Wartość w zł netto"]
[]
[]
[null,null,1,2,3,null,null,4,null,null,5]
[null,null,"1."]
[null,null,"2."]
[null,null,"3."]
[null,null,"4."]
[null,null,"5."]
[null,null,"6."]
[null,null,"7."]
[null,null,"8."]
[null,null,"9."]
[null,null,"10."]
[null,null,"11."]
[null,null,"12."]
[null,null,"..."]
[null,null,null,null,null,null,null,"RAZEM:"]
[]
[]
[]
[null,null,null,"miejscowość i data",null,null,null,null,"(podpis podmiotu ubiegającego się o przyznanie pomocy/ osoby reprezentującej ten podmiot/ pełnomocnika tego podmiotu)"]

{"sheet":"zał. 3 Następca_nabywca","index":16,"n_rows":60,"n_cols":43,"rows_kept":60,"cut":false,"hidden":false,"merged":[[32,21,32,26],[8,36,9,36],[8,33,9,33],[8,32,9,32],[8,31,9,31],[17,3,18,31],[59,2,59,15],[59,22,60,39],[47,4,47,31],[47,33,47,38],[1,32,1,36],[17,33,17,38],[20,33,20,38],[57,2,58,16],[57,22,58,39],[49,4,50,31],[44,4,44,38],[49,33,49,38],[52,4,53,31],[52,33,52,38],[11,2,13,2],[11,3,11,21],[32,27,32,32],[32,33,32,38],[41,33,41,38],[45,4,46,31],[45,33,45,38],[41,3,42,31],[34,30,34,37],[33,27,33,32],[35,3,36,31],[35,33,35,38],[38,3,39,31],[38,33,38,38],[33,33,33,38],[33,3,33,20],[33,21,33,26],[32,3,32,20],[31,21,31,26],[31,27,31,32],[12,30,13,38],[20,3,21,31],[30,3,30,20],[12,3,13,21],[12,22,13,29],[31,3,31,20],[30,27,30,32],[31,33,31,38],[30,33,30,38],[3,2,3,38],[8,2,9,12],[8,13,9,14],[8,15,9,15],[8,16,9,16],[8,17,9,17],[8,18,9,18],[8,19,9,19],[8,23,9,23],[8,24,9,24],[8,25,9,25],[8,26,9,26],[8,27,9,27],[11,22,11,29],[11,30,11,38],[27,21,29,26],[8,20,9,20],[8,21,9,21],[8,22,9,22],[30,21,30,26],[5,25,6,38],[5,5,5,22],[38,2,39,2],[35,2,36,2],[8,38,9,38],[8,28,9,28],[8,29,9,29],[8,30,9,30],[8,34,9,34],[8,35,9,35],[8,37,9,37],[23,3,23,38],[27,27,29,32],[27,33,29,38],[25,3,25,38],[27,2,29,20]]}
[]
[null,null,"Załącznik nr 3 do wniosku o przyznanie pomocy",null,null,null,null,null,null,null,null,null,null,null,null,null,null,null,null,null,null,null,null,null,null,null,null,null,null,null,null,null,"W-1.3_4.1.3"]
[]
[null,null,"Dodatkowe dane dotyczące wniosku o przyznanie pomocy"]
[]
[null,null,null,null,null,"następcy prawnego beneficjenta",null,null,null,null,null,null,null,null,null,null,null,null,null,null,null,null,null,null,null," nabywcy gospodarstwa rolnego lub jego części"]
[]
[]
[null,null,"1. Numer umowy beneficjenta ",null,null,null,null,null,null,null,null,null,null,null,null,null,null,null," "]
[]
[]
[null,null,"1.1.","Nazwisko/Nazwa",null,null,null,null,null,null,null,null,null,null,null,null,null,null,null,null,null,null,"Pierwsze imię",null,null,null,null,null,null,null,"Drugie imię"]
[]
[]
[]
[]
[]
[null,null,"2.","Data zaistnienia następstwa prawnego albo data nabycia gospodarstwa beneficjenta lub części tego gospodarstwa",null,null,null,null,null,null,null,null,null,null,null,null,null,null,null,null,null,null,null,null,null,null,null,null,null,null,null,null,null,null,null,null,null,null,null,null,null,null,"(wybierz z listy)"]
[null,null,null,null,null,null,null,null,null,null,null,null,null,null,null,null,null,null,null,null,null,null,null,null,null,null,null,null,null,null,null,null,null,null,null,null,null,null,null,null,null,null,"nie dotyczy"]
[null,null,null,null,null,null,null,null,null,null,null,null,null,null,null,null,null,null,null,null,null,null,null,null,null,null,null,null,null,null,null,null,null,null,null,null,null,null,null,null,null,null,"TAK"]
[null,null,"3.","Beneficjent zgłosił uprzednio Agencji Restrukturyzacji i Modernizacji Rolnictwa zamiar zbycia gospodarstwa albo jego części",null,null,null,null,null,null,null,null,null,null,null,null,null,null,null,null,null,null,null,null,null,null,null,null,null,null,null,null,null,"(wybierz z listy)",null,null,null,null,null,null,null,null,"NIE"]
[]
[]
[null,null,"4.","Pomoc uzyskana przez beneficjenta i następcę prawnego beneficjenta lub nabywcę"]
[]
[null,null,"4.1.","Pomoc uzyskana uprzednio (przed zaistnieniem następstwa prawnego albo zbyciem gospodarstwa rolnego lub jego części) przez beneficjenta w zakresie poddziałania 4.1.3. \"Wsparcie inwestycji w gospodarstwach rolnych\", typ operacji „Modernizacja gospodarstw rolnych\" oraz poddziałania \"Restrukturyzacja małych gospodarstw\" w ramach PROW na lata 2014-2020 (kwoty pomocy wypłacone lub określone w umowie o przyznaniu pomocy/ decyzji):"]
[]
[null,null,"Numer umowy/ nr decyzji",null,null,null,null,null,null,null,null,null,null,null,null,null,null,null,null,null,null,"Kwota przyznana ",null,null,null,null,null,"Kwota dotychczas wypłacona ",null,null,null,null,null,"Kwota pozostała do wypłaty"]
[]
[]
[null,null,"4.1.1."]
[null,null,"4.1.2."]
[null,null,"4.1.3."]
[null,null,null,"4.1.4. Suma pkt  4.1.1. - 4.1.3.:"]
[]
[null,null,"4.2.","Suma kwot pomocy wypłaconej w ramach operacji zrealizowanych przez beneficjenta i jego następcę prawnego/nabywcę i kwot pomocy przyznanej w ramach operacji niezakończonych przez beneficjenta i jego następcę prawnego/ nabywcę przed zaistnieniem następstwa prawnego/ nabyciem (w zł) "]
[]
[]
[null,null,"4.3.","Kwota niewypłaconej części pomocy beneficjentowi w ramach umowy o przejęcie zobowiązań której ubiega się następca prawny lub nabywca"]
[]
[]
[null,null,"4.4.","Kwota do wykorzystania przez następcę prawnego lub nabywcę na operację objętą wnioskiem, z uwzględnieniem limitu pomocy "]
[]
[]
[null,null,"5. ",null,"Wysokość zaliczki"]
[null,null,"5.1.",null,"Beneficjentowi przyznano zaliczkę na realizację operacji określonej w umowie o przyznaniu pomocy",null,null,null,null,null,null,null,null,null,null,null,null,null,null,null,null,null,null,null,null,null,null,null,null,null,null,null,null,"(wybierz z listy)",null,null,null,null,null,null,null,null,"(wybierz z listy)"]
[null,null,null,null,null,null,null,null,null,null,null,null,null,null,null,null,null,null,null,null,null,null,null,null,null,null,null,null,null,null,null,null,null,null,null,null,null,null,null,null,null,null,"TAK"]
[null,null,"5.2.",null,"Kwota wypłaconej beneficjentowi zaliczki na realizację operacji (w zł)",null,null,null,null,null,null,null,null,null,null,null,null,null,null,null,null,null,null,null,null,null,null,null,null,null,null,null,null,null,null,null,null,null,null,null,null,null,"NIE"]
[]
[null,null,"5.3.",null,"Wypłacona zaliczka, przed zaistnieniem następstwa prawnego/ nabyciem gospodarstwa została w całości rozliczona",null,null,null,null,null,null,null,null,null,null,null,null,null,null,null,null,null,null,null,null,null,null,null,null,null,null,null,null,"(wybierz z listy)"]
[]
[]
[null,null,"5.4.",null,"Kwota zaliczki pozostałej do rozliczenia w ramach kontynuacji operacji przez następcę prawnego/ nabywcę:"]
[]
[]
[]
[]
[]
[]
[null,null,"(miejscowość i data)",null,null,null,null,null,null,null,null,null,null,null,null,null,null,null,null,null,null,null,"(podpis następcy prawnego lub nabywcy/ osoby reprezentującej następcę prawnego lub nabywcę/ jego pełnomocnika)"]

{"sheet":"Zał 4 Ośw. następcy prawneg","index":17,"n_rows":40,"n_cols":34,"rows_kept":40,"cut":false,"hidden":false,"merged":[[0,33,0,37],[1,2,1,18],[1,33,1,37],[2,2,2,18],[2,33,3,37],[42,2,42,20],[25,3,25,37],[26,3,26,37],[27,3,27,37],[31,3,33,17],[31,25,33,37],[34,3,34,16],[28,3,28,24],[28,25,28,37],[29,25,29,37],[39,2,39,37],[40,3,40,37],[34,25,34,37],[37,25,37,37],[4,3,9,18],[4,34,4,36],[5,34,5,36],[19,3,20,37],[23,3,23,33],[21,3,21,37],[10,3,10,18],[10,27,12,37],[13,4,14,37],[17,3,17,37]]}
[]
[null,null,"Załącznik Nr 4 do wniosku o przyznanie pomocy",null,null,null,null,null,null,null,null,null,null,null,null,null,null,null,null,null,null,null,null,null,null,null,null,null,null,null,null,null,null,"W-1.4_4.1.3"]
[]
[]
[]
[]
[]
[]
[]
[]
[null,null,null," Imię i nazwisko, adres, seria i numer dokumentu tożsamości, PESEL, NIP* / Nazwa, adres siedziby, NIP, REGON     "]
[]
[]
[null,null,null,null,"Oświadczenie następcy prawnego o jego wstąpieniu w prawa i obowiązki beneficjenta wynikające z umowy o przyznaniu pomocy "]
[]
[]
[]
[null,null,null,"Oświadczam, że wstąpiłem w prawa i obowiązki beneficjenta wynikające z umowy o przyznaniu pomocy nr: "]
[]
[]
[]
[null,null,null,"(numer umowy o przyznaniu pomocy zawartej przez Agencję z beneficjentem)"]
[]
[null,null,null,"zawartej pomiędzy Agencją Restrukturyzacji i Modernizacją Rolnictwa, a"]
[]
[]
[null,null,null,"(Imię i Nazwisko beneficjenta, Adres,seria i numer dokumentu tożsamości, NIP* lub                                                                                                                                        Nazwa beneficjenta, Adres siedziby, NIP, REGON)"]
[]
[null,null,null,"w związku z zaistnieniem następstwa prawnego w dniu:"]
[null,null,null,null,null,null,null,null,null,null,null,null,null,null,null,null,null,null,null,null,null,null,null,null,null,"(data w formacie rok-miesiąc-dzień)"]
[]
[]
[]
[]
[null,null,null,"(miejscowość i data)",null,null,null,null,null,null,null,null,null,null,null,null,null,null,null,null,null,null,null,null,null,"(podpis następcy prawnego beneficjenta/ osoby reprezentującej następcę/ jego pełnomocnika)"]
[]
[]
[]
[]
[null,null,"*Obowiązek podawania numeru NIP nie dotyczy osób fizycznych objętych rejestrem PESEL, nieprowadzących działalności gospodarczej lub niebędących zarejestrowanymi podatnikami podatku od towarów i usług"]

{"sheet":"Zał 5 Zgoda osoby WUM","index":18,"n_rows":43,"n_cols":34,"rows_kept":43,"cut":false,"hidden":false,"merged":[[15,2,15,37],[27,2,27,37],[0,33,0,37],[1,2,1,29],[1,33,1,37],[2,33,2,37],[3,3,8,18],[3,34,3,36],[4,34,4,36],[9,3,9,18],[30,11,30,31],[16,2,16,37],[17,2,17,37],[18,2,18,37],[19,2,19,37],[20,2,21,37],[22,2,22,37],[24,2,24,37],[25,2,26,37],[10,2,10,37],[11,2,12,37],[13,3,13,36],[14,2,14,37],[28,2,28,37],[29,2,29,37],[41,3,41,37],[42,3,42,37],[44,2,44,20],[33,3,35,17],[33,25,35,37],[36,3,36,17],[36,25,37,37],[37,3,37,16],[40,3,40,27]]}
[]
[null,null,"Załącznik Nr 5 do wniosku o przyznanie pomocy",null,null,null,null,null,null,null,null,null,null,null,null,null,null,null,null,null,null,null,null,null,null,null,null,null,null,null,null,null,null,"W-1.5_4.1.3"]
[]
[]
[]
[]
[]
[]
[]
[null,null,null,"(Imię i Nazwisko, Adres, seria i numer dokumentu tożsamości, PESEL, NIP*/ Nazwa, Adres siedziby, NIP, REGON)"]
[]
[null,null,"Oświadczenie osoby wspólnie wnioskującej o wyrażeniu zgody na przyznanie pomocy następcy prawnemu jednego z beneficjentów albo nabywcy gospodarstwa lub jego części ** "]
[]
[]
[null,null,"Zgodnie z przepisami § 33 ust. 3 rozporządzenia Ministra Rolnictwa i Rozwoju Wsi z dnia 21 sierpnia 2015 r. w sprawie szczegółowych warunków i trybu przyznawania oraz wypłaty pomocy finansowej na operacje typu „Modernizacja gospodarstw rolnych” w ramach poddziałania „Wsparcie inwestycji w gospodarstwach rolnych” objętego Programem Rozwoju Obszarów Wiejskich na lata 2014–2020 (Dz. U. poz. 1371 oraz z 2016 r. poz. 399 i 1617)"]
[null,null,"oświadczam, iż wyrażam zgodę na przyznanie pomocy, w tym kontynuację realizacji operacji przez:"]
[]
[null,null,"(Imię i Nazwisko następcy prawnego beneficjenta/ nabywcy, Adres,seria i numer dokumentu tożsamości/ Nazwa następcy prawnego beneficjenta/ nabywcy, Adres siedziby, NIP*/ REGON)"]
[]
[null,null,"jako następcy prawnego beneficjenta/ nabywcy:"]
[]
[]
[null,null,"(Imię i Nazwisko beneficjenta, Adres, seria i numer dokumentu tożsamości/ Nazwa beneficjenta, Adres siedziby, NIP*, REGON)"]
[]
[null,null,"w ramach wspólnego ubiegania się o pomoc z poddziałania \"Wsparcie inwestycji w gospodarstwach rolnych\" PROW 2014-2020, typ operacji „Modernizacja gospodarstw rolnych\", celem realizacji operacji polegającej na:"]
[]
[]
[null,null,"(zakres operacji)"]
[null,null,"w gospodarstwie zlokalizowanym w:"]
[]
[null,null,null,null,null,null,null,null,null,null,null,"(adres gospodarstwa)"]
[]
[]
[]
[]
[]
[null,null,null,"(miejscowość i data)",null,null,null,null,null,null,null,null,null,null,null,null,null,null,null,null,null,null,null,null,null,"(podpis osoby wspólnie wnioskującej/ pełnomocnika osoby wspólnie wnioskującej)"]
[]
[]
[]
[]
[null,null,null,"*  Obowiązek podawania numeru NIP nie dotyczy osób fizycznych objętych rejestrem PESEL, nieprowadzących działalności gospodarczej lub niebędących zarejestrowanymi podatnikami podatku od towarów i usług"]
[null,null,null,"** dotyczy w przypadku wspólnego ubiegania się o pomoc"]